{"text_format":"1","workbook":"xlsx","n_sheets":7,"sheets":["Planting GUIDELINES NRCS","Instructions ","calculator","SEEDINGPLANSHEET","Forbs_legumes","grass","Sheet1"],"not_rendered":{"charts":0,"images":2,"macros":1,"external_links":0,"defined_names":66,"comments":1,"pivot_tables":0},"unopened":[],"bounds":{"document_bytes":16777216,"sheet_cells":100000,"rows_first":2000,"rows_last":500,"rows_between":2000,"halvings":0,"cell_chars":16384,"cell_head_chars":4096},"cells_cut":0,"cells_raw":0,"read":"whole","date_system":"1900"}

{"sheet":"Planting GUIDELINES NRCS","index":0,"n_rows":109,"n_cols":1,"rows_kept":109,"cut":false,"hidden":false,"merged":[]}
["Conservation Purpose:"]
["This practice may be applied on lands requiring permanent protective cover that are adjacent to or within 1500 feet of an agricultural field,"]
["or are being converted from agricultural production.  Examples of locations include fields or wet margins, roadsides, areas within or "]
["adjacent to fruit and vegetable production, steep slopes, open upland habitat, reclaimed sand pits, forest edges, right-of-ways etc…"]
["Although larger areas of habitat (1/2 Acre or more) will provide more resources to support pollinator populations, flower rich habitat can "]
["be created in small patches or strips (20 feet wide or more).  "]
["Conservation Cover Seeding Information:"]
["a.) All seed shall be certified or common seed from a commercial supplier and be fully tagged with a test date of no more than 9 months"]
["    old. Wildflower seed prices and PLS information will vary from year to year.  It is very important to contact your seed supplier to obtain "]
["    PLS information before costs are finalized.  Most seed companies list their prices in bulk pounds per acre.  Recommendations are in "]
["    PLS and seed companies, when asked, will give prices on a PLS basis.  "]
[]
["b.) Selected seed mixtures that will be tolerant of soil drainage site conditions."]
["Pollinator Habitat Planting Considerations"]
["a.)  Native wildflowers shall be planted to promote diversity of flowering plants over the entire growing season and provide habitat for"]
["      pollinators.  Special care should be taken to establish plantings that do not compete with the bloom time of adjacent crops.  Seed"]
["      mixes shall contain a minimum of 9 species of pollinator-friendly plants with at least 3 species blooming in the following months:"]
["      early (April-June 15), mid (June 15-July 31), and late (August-October).  A more diverse mix is encouraged."]
[]
["b.)  Non-competitive native bunch grasses can be added to the mix for pollinator habitat enhancement, other conservation benefits, or"]
["      erosion control.  The final combined seeding rate for the native flower component will not be less that 25 pure live seeds per square"]
["      foot.  If grasses are used, grass species should be at least 25% of the total mix, on a PLS per square foot basis.  "]
[]
["c.)  Non-native flowering plants beneficial to pollinators, may be included in the mix.  No more that 20% of the total mix will consistute "]
["     non-native species.  No individual non-native species may not exceed 10% of the total mix.  (PLS)"]
[]
["d.)  When identifying planting sites, please keep in mind the following:"]
["      1.  Habitat patches that are larger, closer, or interconnected will support abundantly more populations of pollinators than small, isolated"]
["           ones.  Minimum size field requirements for the Conservation Reserve Program (CRP) is .5 acres.  If planted in strips, the "]
["           minimum strip width is 20 feet."]
["      2.  Avoid areas with anticipated pesticide drift.  "]
["      3.  Avoid areas that are fully shaded."]
["      4.  Take existing areas of high quality pollinator habitat into account when planting pollinator-friendly plants and aim to fill 'holes'"]
["           in the flowering phenology."]
["e.)  A rule of thumb is try to enhance 1 Acre of pollinator habitat for every 25 Acres of cropland"]
["f.)  Keep warm season grasses in separte strips from herbaceaous places, if applicable, due to different management regimes during"]
["     establishment."]
["g.) Know the species you are planting.  Some species may harm adjacent crops by promoting unwanted insects and diseases."]
["Competition Control Before Planting"]
["a.)  Site preparation is one of the most important and often inadequately addressed components of establishing successful pollinator"]
["      habitat plantings.  This process may require over a year of efforts to reduce competition from unwanted species, invasives, or noxious"]
["      plants prior to planting.  See Appendix A, on the New York Conservation Cover Job Sheet for detailed guidance."]
["b.)  In particular, site preparation should focus on the abatement of perennial weeds, by the following means:"]
["     1.  if possible follow annual cropping systems which have a history of excellent weed control."]
["     2.  If the field was left in weeds following cropping or has been in low maintenance hayland, pasture, or idle, it is recommended to"]
["         use methods to reduce the soil weed seed bank with light cultivation, smother crops, and/or herbicides"]
["     3. If using herbicides for weed control, spray at dusk when bees are less active."]
["     4.  All chemical and biological pest suppression recommendations must be made by a qualified Extension Specialist or consultant."]
["         Pesticide applications will be made by a Certified NYS Pesticide Applicator when required.  All pesticide applications shall be in"]
["         accordance with the product label as required by law."]
["     5.  Additional care needs to be taken, that any chemical used will not affect subsequent cover crop or wildflower establishment.  "]
[]
[]
[]
["Seedbed Preparation"]
["a.)  A firm and well prepared seedbed is important when seeding grasses, wildflowers, and legumes. Please see the following:"]
["     1.  Avoid seedbed prepation when the soil moisture content is too high.  This will help allevaite potential compaction issues."]
["     2.  Initial tillage should begin at least a month or more prior to seeding.  Up to year may be needed in some areas."]
["     3.  After intial tillage, wait at least 2 weeks before the final seedbed preparation.  This will allow for any weeds to germiante and be "]
["         killed through herbicide application or light cultivation."]
["     4.  The seedbed shall be scarified and roughened to ensure adequate seed to soil contact."]
["     5.  The final seedbed should be cultipacked until firm enough to leave footprints only 1/4 to 1/2 inches deep.  "]
["     6.  No-till drills, with native seed hoppers, can be used.  It is typically used in combination with some tillage for weed control.  If "]
["         following a low residue crop, no-till seeding can be effective and recommended."]
["Seeding Dates "]
["Spring Seeding (prior to June 1):"]
["     ~Annual weeds may be a problem, and may require mowing up to 2x during establishment year."]
["Late Summer (August 5-15)"]
["     ~When days are shortening and there is soil moisture present from morning dew"]
["     ~This time frame is when late summer forage legumes are typically planted"]
["     ~These date are extremely weather and soil moisture dependant and should not exceed August 15"]
["     ~Use these dates on soils that are not prone to heavy frost heaving"]
["Dormant seeding (after October 20)"]
["     ~This time frame is recommended by the Xerces Society"]
["     ~At these dates, wet conditions may prevail and make it very difficult to break up the surface of the soil with tillage, mechanical "]
["       seeders, and cultipacking"]
["     ~A no-till planter could be an option if the field is prepared in late September and seeding is conducted in the fall when soils are drier."]
["     ~Mechanical planting must be performed before the onset of snowfall."]
["Seeding Methods"]
["Broadcast seeding (hand or hand-held seed spreaders)"]
["     ~for small areas"]
["Drop seeder or ATV mounted broadcast seeder"]
["     ~large areas"]
["Native plant seed drills"]
["     ~Tye or Truax drills"]
["Seeding Considerations"]
["a.)  When broadcast seeding, it is easier to divide larger seedlots into smaller increments.  Depending on how much seed is needed"]
["      the larger the area, the more divisions are needed.  "]
["b.)  A filler agent is recommended when seeding wildflowers, especially with very small seed.  Fine play sand, fine grained vermiculite"]
["      pelleted lime, clay kitty litter, or other free flowing material inter material can be mixed into seed mixes.  This will help with evenly"]
["      spreading the seed throughout the area."]
["c.)  When seeding with a seeder, seeds of similar sizes should be placed together in the appropiate hopper for better distribution,  Most"]
["      wildflower species, depth controls should be set at 1/4 inch deep, and stopping to check periodically to check depth is a good idea."]
["d.)  Cultipack after any seeding method, for good seed to soil contact."]
["Special Requirements"]
["Site Disturbance"]
["  -minimize site disturbance in these areas, for creating nesting opportunities for bumble bees and other ground nesting species.  "]
["   Providing open areas can be obtained by mowing or burning, infrequently.  Proper timing of these operation and maintence is critical"]
["   to ensure the species are not harmed.  Only provide disturbance on 1/3 of the habitat per year, especially at a time that would not"]
["   disturb ground nesting bird species.  "]
["Weed Control"]
["  -Monitoring and controlling weeds in the first few years are critical for establishing wildflower habitat for pollinators.  The better the site"]
["   is prepared in the beginning, the higher the success of the overall planting, coupled with a management regime."]
["Maintaince Practices"]
["  -These practices must be adequte to control noxious and invasive plants and may involve mowing, burning, hand weeding, or spot"]
["   spraying.  If burning, a burn plan must be in place with the oversight of a burn boss and must follow all applicable federal, state, and"]
["   local permits and regulations."]
["  - Actual management will depend on the size and location of the habitat"]
["  -FOR ADDITIONAL MAINTAINCE OPTIONS, please see your state's conservation practice job sheet for more information."]

{"sheet":"Instructions ","index":1,"n_rows":40,"n_cols":1,"rows_kept":40,"cut":false,"hidden":false,"merged":[]}
["Instructions to Use Calculator for Planting Beneficial Plants for Pollinator Habitat"]
["(enable marcos, first on calculator sheet)"]
["1. Use the Filter Species Drop Down Boxes to Select Desired Characteristics, if needed. "]
["         Species highlighted in yellow, on the calculator worksheet are being tested at the USDA NRCS Big Flats Plant Materials Center, in New York"]
["         The species list will populate to the right of the calculator.  All characteristics will show up."]
["         State column, is indicative of the NRCS Job Sheet that has been compiled by the States listed, and is NOT where species are found.  ALL species are found in the NE US."]
[]
["3.  Select desired species in first column of the calculator.  A Drop Down Box will appear when cell is selected.  "]
["     Choose a minimum of 3 early- (April to June 15), 3 mid- ( June 15-July 31) and 3 late-season flowering (August to October) species."]
["          More species chosen, the better diversity in the mix.  Keep in mind the cost of each species as well as the final cost.  "]
[]
["4.  Enter in your seeding rate for each species- lbs/A OR desired seeds/sq ft.   These values are expressed as Pure Live Seed or PLS."]
[]
["5.  If you know the lot of seed you are working with, Enter the Purity (%), Germination (%), and Dormant (%) and/or Hard Seed (%), for each"]
["     species .  The Calculator has a DEFAULT PLS of  50% (can change this if you want), and is filled in for you .  It will update once you fill in the information from your seed tag. "]
["         Each species PLS will vary, and may change if old seed is used.  New lots of seed are strongly recommended.  "]
["         A germination test should have been completed within  9 months of the purchase date."]
[]
["6.  Adjust your seeding rates as necessary to obtain at least 25 seeds per square foot (PLS)  for the entire mix.  A site with high weed"]
["     pressure may require a seeding rate of at least 40 seeds per square foot."]
[]
["7.  Selecting a grass species is optional, and may be no more that 25% of the total mix."]
["         Non-competitive native warm-season bunch grasses or native wildryes can be used in the mix.  There is a spot on the calculator for these selections."]
[]
["8.   Non-native flowering plants beneficial to pollinators may be included in the mix.  No more than 20% of the total mix will consist of non-native plants"]
["      Individual non-native species will not exceed 10% of the total mix, on a PLS per square foot basis.  "]
[]
["9.   A final seeding plan, can be viewed and printed on the seeding plan worksheet.  This will provide a summary of all species used"]
["     and a cost for the entire mix."]
[]
["10.  Use the clear buttons, at the top of the calculator, when completed.  "]
[]
["11.  Any Species, of your choice, can be added to the calculator OR on the Forbs_Legumes Worksheet.  Just remember that seeds per pound and cost need to "]
["      added, in order for the calculator to work. On the Forbs_Legumes worksheet, there are species that have no information filled in, this is will be filled in soon.  "]
[]
["12.  IF by mistake, you add something you didn't want, you can overwrite in that cell, or clear it out.  When finished, and would like to start another mix , Just Reset the Sheet.."]
["       DO NOT Enter anything in the cells that are calculating lbs/A or percentages of the mix.  You will have to Reset the sheet to get formulas back."]
[]
["**NOTE**  Cost, availability, and PLS  will vary from year to year, and sometimes monthly.  All costs provided in this calculator were from a variety of sources."]
["  Call ahead to your local seed provider."]

{"sheet":"calculator","index":2,"n_rows":114,"n_cols":41,"rows_kept":114,"cut":false,"hidden":false,"merged":[]}
["Seeding Rate Calculator For Conservation Plantings",null,null,null,null,null,null,null,null,null,null,null,"*Please check comments for more information*",null,null,null,null,null,null,null,null,null,null,null,"Flower Time","soil moisture","pollinator ranking","State"]
["Enter desired PLS rate (either lb/A or seeds/sq ft) and seed tag info (if applicable) in shaded areas",null,null,null,null,null,null,null,null,null,null,null,null,null,null,null,null,null,null,null,null,null,null,null,{"$f":"IF($A$5=\"\",\"\",$A$5)","v":""},{"$f":"IF($C$5=\"\",\"\",$C$5)","v":""},{"$f":"IF(calculator!$D$5=\"\",\"\",calculator!$D$5)","v":""},{"$f":"IF(calculator!$E$5=\"\",\"\",calculator!$E$5)","v":""}]
["Select Filter Species Criteria (if any)",null,null,null,null,null,null,null,"CLICK HERE FOR MORE DETAILED PLS INFORMATION",null,null,null,null,null,null,null,null,null,null,null,null,null,null,null,"Common name","scientific name","plant Type","pollinator ranking","Flower Time","bloom color","plant ht (ft)","soil moisture","sunlight needs","ph","Vegetative spread","seeds/ lb*","Cost (lb) ($)","drainage","other","wetland indicator","State"]
["Flower Time",null,"soil moisture","pollinator ranking","State ",null,null,null,"When seed is order on a PLS basis, Change the price column",null,null,null,null,null,null,null,null,null,"The bulk info columns are handy when",null,null,null,null,null,"black bugbane","Actaea racemosa","P","high","early, mid","white","3-6","medium, wet","sun-part",null,"slow",500000,300,null,"blooms earlier than the others","FACW","any,"]
[null,null,null,null,null,null,null,null,"Accordinly. No need to look at Bulk info.",null,null,null,null,null,null,null,null,null,"PLANNING your mix.  It is based on 50% PLS.",null,null,null,null,null,"purple false foxglove","Agalinis purpurea","A","high","early, mid, late","purple","1-2","medium, wet","sun-part",null,null,12480000,500,"WD,MWDMSPD, PD","high bee preference","FACW","any,"]
["For more information on each plant, go to forbs_legumes worksheet and click on species",null,null,null,null,null,null,null,null,null,"PLS INFO",null,null,"  seed tag information",null,null,null,null,null,null,"BULK INFO",null,null,null,"lavender hysoop","Agastache foeniculum","P","high","mid, late","blue-violet","3-5","dry, medium","sun-part",null,"slow",1440000,172,"WD ","honey bee, bumble bee (N)","FACU","any,mn,wv"]
["Common Name","Scientific Name","PLS**/lb","bloom time","soil moisture","$/ bulk lb","lb PLS/A ","bulk lb/A","% of mix/A PLS","seeds/A PLS","seeds/sq ft PLS","% PLS of mix by # of seeds/A ","Estimated $ PLS species/A","pure seed (%)","germ (%)","dormant + hard seed (%)","PLS (%)","conversion factor","Bulk Seed Needed (lb/A)","Estimated Price/lb of bulk seed","seeds/A Bulk","seeds/sq ft (bulk)",null,null,"yellow giant hyssop","Agastache nepetoides","P","high","late","yellow","3-8","dry, medium","sun-part",null,null,1480000,200,null,null,"FACU","any,mn,wv"]
[null,null,{"$f":"IF(A8=\"\",\"\",VLOOKUP(A8,NEWALLSPECIES,12,FALSE))","v":""},{"$f":"IF(A8=\"\",\"\",VLOOKUP(A8,NEWALLSPECIES,5,FALSE))","v":""},{"$f":"IF(A8=\"\",\"\",VLOOKUP(A8,NEWALLSPECIES,8,FALSE))","v":""},{"$f":"IF(A8=\"\",\"\",VLOOKUP(A8,NEWALLSPECIES,13,FALSE))","v":""},{"$f":"IF(ISERROR(K8/W8),\"\",K8/W8)","v":""},{"$f":"IF(ISERROR(G8/R8),\"\",G8/R8)","v":""},{"$f":"IF(ISERROR(G8/$D$38),\"\",G8/$D$38)","v":""},{"$f":"IF(ISERROR(G8*C8),\"\",C8*G8)","v":""},{"$f":"IF(ISERROR(J8/43560),\"\",J8/43560)","v":""},{"$f":"IF(ISERROR(K8/SUM($D$40)),\"\",K8/SUM($D$40))","v":""},{"$f":"IF(ISERROR(G8*F8),\"\",G8*F8)","v":""},null,null,null,{"$f":"IF(N8=\"\",\"50\",((O8+P8)*N8)/100)","v":"50"},{"$f":"IF(Q8=\"\",\"\",(Q8/100))","v":0.5},{"$f":"IF(ISERROR(G8/R8),\"\",G8/R8)","v":""},{"$f":"IF(ISERROR(H8*F8),\"\",F8*H8)","v":""},{"$f":"IF(ISERROR(H8*C8),\"\",H8*C8)","v":""},{"$f":"IF(ISERROR(U8/43560),\"\",U8/43560)","v":""},{"$f":"IF(A8=\"\",\"\",VLOOKUP(A8,NEWALLSPECIES,23,FALSE))","v":""},null,"purple giant hyssop","Agastache scrophulariifolia","P","very high ","mid","purple","2-6","med, wet","full ","6.5-7.0","n/a",1000000,80,"WD,MWD","attractive to bees and butterflies,birds, RARE","FACW","ny,any,pa,mn,wv"]
[null,null,"","","","",{"$f":"IF(ISERROR(K9/W9),\"\",K9/W9)","v":""},{"$f":"IF(ISERROR(G9/R9),\"\",G9/R9)","v":""},{"$f":"IF(ISERROR(G9/$D$38),\"\",G9/$D$38)","v":""},{"$f":"IF(ISERROR(G9*C9),\"\",C9*G9)","v":""},{"$f":"IF(ISERROR(J9/43560),\"\",J9/43560)","v":""},{"$f":"IF(ISERROR(K9/SUM($D$40)),\"\",K9/SUM($D$40))","v":""},{"$f":"IF(ISERROR(G9*F9),\"\",G9*F9)","v":""},null,null,null,{"$f":"IF(N9=\"\",\"50\",((O9+P9)*N9)/100)","v":"50"},{"$f":"IF(Q9=\"\",\"\",(Q9/100))","v":0.5},{"$f":"IF(ISERROR(G9/R9),\"\",G9/R9)","v":""},{"$f":"IF(ISERROR(H9*F9),\"\",F9*H9)","v":""},{"$f":"IF(ISERROR(H9*C9),\"\",H9*C9)","v":""},{"$f":"IF(ISERROR(U9/43560),\"\",U9/43560)","v":""},"",null,"leadplant","Amorpha canescens","P","high","early,mid","purple","2-3","dry, medium","sun-part",null,"slow",256000,210,"WD,MWD, SPW,PD","legume ","UPL","any,mi,mn"]
[null,null,"","","","","","","","","","","",null,null,null,"50",0.5,"","","","","",null,"common bluestar","Amsonia tabernaemontana","P","high","early","blue","2-4","medium, wet","sun-part",null,null,363000,null,"WD","exotic looking flowers","FACW","any,"]
[null,null,"","","","","","","","","","","",null,null,null,"50",0.5,"","","","","",null,"purplestem angelica","Angelica atropurpurea","P","high","mid","white","1-2","medium,wet","sun",null,null,86400,200,null,"host for American painted lady caterpillar","OBL","any,"]
[null,null,"","","","","","","","","","","",null,null,null,"50",0.5,"","","","","",null,"indian hemp","Apocynum  cannabinum","P","medium,low "," mid","white","2-6","dry, med","full","4.5-7","high",500000,280,"WD,MWD,SPD","extensive root system, fairly aggressive","FAC","ny,any"]
[null,null,"","","","","","","","","","","",null,null,null,"50",0.5,"","","","","",null,"red columbine","Aquilegia canadensis","P","high","early","red","1-2","dry, medium","sun-part shade",null,"slow",400000,480,"WD","deer resistant, native bees, humming birds","FACU","VA,ANY,ny"]
[null,null,"","","","","","","","","","","",null,null,null,"50",0.5,"","","","","",null,"common milkweed","Asclepias  syriaca","P","high ","early, mid","pink purple","3-4","dry, med","full to partial","5.6-7.5","high",68000,180,"WD,MWD","attracts monarchs; cuttings will bloom in first year, seeds may not","UPL","ny,any,pa,md,mi,mn"]
[null,null,"","","","","","","","","","","",null,null,null,"50",0.5,"","","","","",null,"swamp milkweed","Asclepias incarnata","P","high ","mid","pink","2-3","wet","full to partial","5-8","slow",75000,280,"SPD,PD","good for wetlands; great for monarch; high deer resistant","OBL","VA,ANY,ny,pa,mi,mn"]
[null,null,"","","","","","","","","","","",null,null,null,"50",0.5,"","","","","",null,"purple milkweed","Asclepias purpurascens","P","high","mid","purple","2 -3 ","dry, medium","sun-part",null,"mod",72000,800,null,"Attracts butterflies, hummingbirds","FACU","any,"]
[null,null,"","","","","","","","","","","",null,null,null,"50",0.5,"","","","","",null,"butterfly milkweed","Asclepias tuberosa","P","high ","mid,late","orange","1-2","dry,medium","full to partial","4.8-6.8","none",70000,320,"WD,MWD","attractive to monarchs","FAC-","VA,ANY,ny,nh,pa,me,md,mi,mn"]
[null,null,"","","","","","","","","","","",null,null,null,"50",0.5,"","","","","",null,"whorled milkweed","Asclepias verticillata","P","high","mid","white","1-2","dry","sun-part",null,"mod, rapid",176000,700,null,null,"UPL","any,"]
[null,null,"","","","","","","","","","","",null,null,null,"50",0.5,"","","","","",null,"white wild indigo","Baptisia alba","P","high","early","white/yellow","2-3","dry, medium","sun-part",null,"slow",30000,180,null,"larval food for wild indigo duskywing","FACU","any,"]
[null,null,"","","","","","","","","","","",null,null,null,"50",0.5,"","","","","",null,"blue wild indigo","Baptisia australis","P","medium  ","early","purple/ blue","3-5","dry, med","full","5.8-7.2","none",35000,160,"WD,MWD","native legume, great for mixes, bushy habit, good ground cover","FAC-","nh,VA,ANY,ny,pa,md"]
[null,null,"","","","","","","","","","","",null,null,null,"50",0.5,"","","","","",null,"wild indigo","Baptisia tinctoria","P","medium","early, mid","yellow","1-3","dry, med","full","5.8-7","none",300000,440,null,"very low maintenance","FAC","nh,any,ny"]
[null,null,"","","","","","","","","","","",null,null,null,"50",0.5,"","","","","",null,"bearded beggarticks","Bidens aristosa","P","mediu","late","yellow","3","med, wet",null,"5-7",null,130000,18,"MWD,SPD",null,"FACW","ny,any"]
[null,null,"","","","","","","","","","","",null,null,null,"50",0.5,"","","","","",null,"nodding beggartick","Bidens cernua","A","high","mid, late","yellow","2-3","wet","sun-part","5.1-7",null,130000,240,"MWD,SPD,PD","2-15% in a mix","OBL","VA,ANY"]
[null,null,"","","","","","","","","","","",null,null,null,"50",0.5,"","","","","",null,"marsh marigold","Caltha palustris","P","high","early","yellow","1-2","med, wet","sun, part shade","6-8","slow",416000,600,null,".5-5% in a mix","OBL","any,md,mi"]
[null,null,"","","","","","","","","","","",null,null,null,"50",0.5,"","","","","",null,"bluebell bellflower","Campanula rotundifolia","P","high","mid,late","blue-violet","1-2","dry, medium","sun-part",null,null,14400000,800,null,null,"FACU","any,"]
[null,null,"","","","","","","","","","","",null,null,null,"50",0.5,"","","","","",null,"American bellflower","Campanulastrum americanum","A","medium","mid, late","blue","2-6","dry, medium","sun-part",null,null,12800000,600,null,"very small seed","FAC","any,"]
["Grasses",null,"seeds/lb","soil moisture","height (ft)","cost/PLS lb","lb PLS/A","bulk lbs/A","% of mix/A PLS (wt)","seeds/A PLS","seeds/sq ft (PLS)","% of mix by # of seeds/A","$PLS species/A",null,null,null,"PLS (%)",{"$error":"#VALUE!"},"Bulk Seed Needed (lb/A)","Price/lb of bulk seed","seeds/A Bulk","seeds/sq ft (bulk)",{"$error":"#N/A"},null,"New Jersey tea","Ceanothus americanus","Sh","high","early","blueish-white","3-4","dry, medium","sun-shade","4.6-6.5","slow",116800,700,null,null,"UPL","any,"]
[null,null,{"$f":"IF(A28=\"\",\"\",VLOOKUP(A28,grassy,10,FALSE))","v":""},{"$f":"IF(A28=\"\",\"\",VLOOKUP(A28,grassy,11,FALSE))","v":""},{"$f":"IF(A28=\"\",\"\",VLOOKUP(A28,grassy,8,FALSE))","v":""},{"$f":"IF(A28=\"\",\"\",VLOOKUP(A28,grassy,5,FALSE))","v":""},{"$f":"IF(ISERROR(K28/W28),\"\",K28/W28)","v":""},{"$f":"IF(ISERROR(G28/R28),\"\",G28/R28)","v":""},{"$f":"IF(ISERROR(G28/$D$38),\"\",G28/$D$38)","v":""},{"$f":"IF(ISERROR(G28*C28),\"\",C28*G28)","v":""},{"$f":"IF(ISERROR(J28/43560),\"\",J28/43560)","v":""},{"$f":"IF(ISERROR(K28/SUM($D$40)),\"\",K28/SUM($D$40))","v":""},{"$f":"IF(ISERROR(G28*F28),\"\",G28*F28)","v":""},null,null,null,"50",0.5,"","",{"$f":"IF(ISERROR(H28*C28),\"\",H28*C28)","v":""},"",{"$f":"IF(A28=\"\",\"\",VLOOKUP(A28,grassy,16,FALSE))","v":""},null,"partridge pea","Chamaecrista fasciculata","P","high ","early, mid, late","yellow","1-3","dry, med","full to partial","5.5-7.5","none",65000,10,"WD,MWD","good for wildlife and erosion control; legume","FACU","VA,ANY,ny,pa,md,mn"]
[null,null,"","","","",{"$f":"IF(ISERROR(K29/W29),\"\",K29/W29)","v":""},{"$f":"IF(ISERROR(G29/R29),\"\",G29/R29)","v":""},{"$f":"IF(ISERROR(G29/$D$38),\"\",G29/$D$38)","v":""},{"$f":"IF(ISERROR(G29*C29),\"\",C29*G29)","v":""},{"$f":"IF(ISERROR(J29/43560),\"\",J29/43560)","v":""},{"$f":"IF(ISERROR(K29/SUM($D$40)),\"\",K29/SUM($D$40))","v":""},{"$f":"IF(ISERROR(G29*F29),\"\",G29*F29)","v":""},null,null,null,"50",0.5,{"$f":"IF(ISERROR(G29/R29),\"\",G29/R29)","v":""},{"$f":"IF(ISERROR(H29*F29),\"\",F29*H29)","v":""},{"$f":"IF(ISERROR(H29*C29),\"\",H29*C29)","v":""},{"$f":"IF(ISERROR(U29/43560),\"\",U29/43560)","v":""},"",null,"white turtlehead","Chelone glabra","P","high","mid","White","2-4","med, wet","full-shade","5.1-6.5","slow",1560000,600,"SPD,PD","good for shady woods","OBL","VA,ANY,ny,nh,"]
[null,null,"","","","","","","","","","","",null,null,null,"50",0.5,"","","","","",null,"blue chicory","Cichorium intybus","P","very low ","mid, late","purple","1-4","dry, med","full to partial","6.0-7.5","none",426400,16,null,"roadsides, open fields","FACU","ny,any"]
[null,null,"","","","","","","","","","","",null,null,null,"50",0.5,"","","","","",null,"mistflower","Conoclinium coelestinum","P","high","mid,late","purple","2-3","dry,medium","sun-shade","5.5-7.5",null,2000000,80,null,"Great late season butterfly plant","FAC","any,pa"]
[null,null,"","","","","","","","","","","",null,null,null,"50",0.5,"","","","","",null,"lanced-leaved coreopsis","Coreopsis lanceolata","P","low ","early, mid","yellow","1-3","dry, med","full","6.0-7.0","none",210000,14,"WD,MWD","can tolerate regular mowing","FACU","any,ny,mi"]
[null,null,"","","","","","","","","","","",null,null,null,"50",0.5,"","","","","",null,"plains coreopsis","Coreopsis tinctoria","P","low ","early, mid, late","yellow","1-2","dry, med","full","5.2-7.8","none",3222222,16,"WD,MWD,SPD"," flowers in short period of time, may become invasive","FACU","VA,ANY,ny,md"]
[null,null,"","","","","","","","","","","",null,null,null,"50",0.5,"","","","","",null,"tall tickseed","Coreopsis tripteris","P","high","mid, late","yellow","3-6","medium","sun-part",null,"mod",200000,300,"WD,MWD","prolific seeder","FAC","VA,ANY,ny"]
[null,null,"","","","","","","","","","","",null,null,null,"50",0.5,"","","","","",null,"cosmos","Cosmos bipinnatus","A","high","mid, late","pink/white","2-4","dry,medium","sun, part sun",null,null,70000,12,"WD",null,"FAC","any"]
[null,null,"","","","","","","","","","","",null,null,null,"50",0.5,"","","","","",null,"Illinios bundleflower","Desmanthus illinoensis","P","high","mid","white","2-4","dry, med","full","5-8",null,120000,30,null,null,"FACU","any,mn"]
["TOTALS FOR MIX BASED ON PLS",null,null,null,null,null,null,null,null,null,null,null,null,null,null,null,null,null,null,null,null,null,null,null,"showy tick trefoil","Desmodium canadense","P","medium,low","mid","pink/ purple","2-6","dry, med","full to partial","5.6-6.5","n/a",81000,80,"SPD, WD","legume, can become invasive","FAC","VA,ANY,ny,md,mn"]
["lbs of PLS/Acre",{"$f":"#REF!","v":{"$error":"#REF!"}},null,{"$f":"SUM(gg)","v":0},"SUM FORBS in MIX (by weight)",null,null,null,{"$f":"SUM(I8:I26)","v":0},null,"SUM FORBS in MIX (by # of seeds)",null,null,null,null,{"$f":"SUM(L8:L26)","v":0},null,null,null,null,null,null,null,null,"flat top white aster","Doellingeria umbellata","P","medium,low","late","white","3-4","med, wet","full  ","5.6-7.5","n/a",1200000,200,"WD,MWDMSPD, PD","host to pearl crescent, and silvery checkerspot","FACW","ny,any,md"]
["lbs of Bulk Seed/Acre ",{"$f":"#REF!","v":{"$error":"#REF!"}},null,{"$f":"SUM(hh)","v":0},"SUM GRASSES in MIX (by weight)",null,null,null,{"$f":"SUM(I28:I36)","v":0},null,"SUM GRASSES in MIX (by # of seeds)",null,null,null,null,{"$f":"SUM(L28:L36)","v":0},null,null,null,null,null,null,null,null,"pale purple coneflower","Echinacea pallida","P","high","mid","purple","2-4","dry, medium","sun, part shade","6.5-7.2","slow",83200,72,"WD,MWD","honey beesm native bees (n); goldfinches","UPL","any"]
["# of seeds/sq ft. (PLS)",{"$f":"#REF!","v":{"$error":"#REF!"}},null,{"$f":"SUM(K8:K36)","v":0},null,null,null,null,null,null,null,null,null,null,null,null,null,null,null,null,null,null,null,null,"purple coneflower","Echinacea purpurea","P","high ","mid, late","purple",".5-2","dry, med","full to partial","6.5-7.2","mod",115000,28,"WD-MWD","easy to grow","FAC","ny,any,nh,me,mi,mn"]
["Estimated Total Price (Bulk)",{"$f":"#REF!","v":{"$error":"#REF!"}},null,{"$f":"SUM(T8:T36)","v":0},null,null,null,null,null,null,null,null,null,null,null,null,null,null,null,null,null,null,null,null,"rattlesnake master","Eryngium yuccifolium","P","high","mid, late","white","3","medium","sun","6.5-7.5",null,170000,120,"WD,MWD,SPD,PD",null,"FAC","any,mi"]
["Estimated Total Price (PLS)",null,null,{"$f":"SUM(M8:M36)","v":0},null,null,null,null,null,null,null,null,null,null,null,null,null,null,null,null,null,null,null,null,"spotted joe pye weed","Eupatoriadelphus maculatus","P","high ","mid","pink-purple","2-7","med, wet","full to partial","5.5-7","slow",1500000,240,"SPD,PD","attracts butterflies","FACW","VA,ANY,ny,md,mi,mn"]
[null,null,null,null,null,null,null,null,null,null,null,null,null,null,null,null,null,null,null,null,null,null,null,null,"boneset","Eupatorium perfoliatum","P","high ","mid, late","white","3-5"," med, wet","full to partial","6.1-7.8","n/a",2880000,220,"SPD,PD","from seed, flowers in 2nd to 3rd year. may attract pests","FACW","VA,ANY,ny,nh,pa,mi,mn"]
[null,null,null,null,null,null,null,null,null,null,null,null,null,null,null,null,null,null,null,null,null,null,null,null,"sweetscented joepyeweed","Eupatorium purpureum","P","high","mid summer-fall","pink-purple","2-6","dry, medium","sun-shade",null,"slow",768000,240,null,"butterflies and other insects","FAC","any"]
[null,null,null,null,null,null,null,null,null,null,null,null,null,null,null,null,null,null,null,null,null,null,null,null,"bigleaf aster","Eurybia macrophylla","P","medium,low"," late","purple","2-5","dry","full-shade","4.9-6.9","mod",800000,220,null,"provides wildlife habitat, can tolerate some shade","UPL","any"]
[null,null,null,null,null,null,null,null,null,null,null,null,null,null,null,null,null,null,null,null,null,null,null,null,"grass-leaved goldenrod","Euthamia graminifolia","P","low "," late","yellow","3-6","dry, med","full","n/a","fast",5600000,400,"SPD, MWD","food and cover for wildlife","FAC","ny,any"]
[null,null,null,null,null,null,null,null,null,null,null,null,null,null,null,null,null,null,null,null,null,null,null,null,"blanketflower","Gaillardia aristata","P","high","ealy,mid,late","orange","1-1.5","dry, medium","full ","5.5-7.9",null,200000,32,null,"honey bees, native bees (n/p)","FACU","any"]
[null,null,null,null,null,null,null,null,null,null,null,null,null,null,null,null,null,null,null,null,null,null,null,null,"bottle gentian","Gentiana clausa","P","high","late","purple","1","dry","full-part","5.8-7.2",null,2500000,400,"WD,MWD,SPD",null,"FACW","any"]
[null,null,null,null,null,null,null,null,null,null,null,null,null,null,null,null,null,null,null,null,null,null,null,null,"spotted geranium","Geranium maculatum","P","high","early","purple",2,"dry, medium","sun, part sun, shade","5.5-8.5",null,800000,800,null,null,"FACU","nh,any,me"]
[null,null,null,null,null,null,null,null,null,null,null,null,null,null,null,null,null,null,null,null,null,null,null,null,"rough avens","Geum laciniatum","P","high","early","white","3"," med","sun-part","5-7",null,400000,160,"WD,MWD",null,"FACW","any"]
[null,null,null,null,null,null,null,null,null,null,null,null,null,null,null,null,null,null,null,null,null,null,null,null,"common sneezeweed","Helenium autumnale","P","high ","mid, late","yellow","2-5","med, wet","full","4.0-7.5","none",2000000,80,"WD,MWD,SPD","attracts butterflies, flowers late","FACW","VA,ANY,ny,nh,,me,mn"]
[null,null,null,null,null,null,null,null,null,null,null,null,null,null,null,null,null,null,null,null,null,null,null,null,"giant sunflower","Helianthus giganteus","P","medium ","mid,late","yellow","3-10","dry, med","full","6.1-7.8","none",160000,300,"WD,MWD","large plant, small flowers","FACW","any,nh,ny,mn"]
[null,null,null,null,null,null,null,null,null,null,null,null,null,null,null,null,null,null,null,null,null,null,null,null,"Maximilian sunflower","Helianthus maximiliani","P","high","late","yellow","6-9","dry, med","full","6-8",null,190000,36,"WD,MWD",null,"UPL","mi,any"]
[null,null,null,null,null,null,null,null,null,null,null,null,null,null,null,null,null,null,null,null,null,null,null,null,"ashy sunflower","Helianthus mollis","P","medium ","mid, late","yellow","2-6","dry","full","5.7-8.0","high",125000,180,null,"covered with hairs","UPL","any"]
[null,null,null,null,null,null,null,null,null,null,null,null,null,null,null,null,null,null,null,null,null,null,null,null,"oxeye sunflower","Heliopsis helianthoides","P","low ","mid","yellow","2-5","dry, med","full to partial","6.1-7.8","n/a",103900,48,"MWD, ED",null,"FAC","VA,ANY,ny,md,mi,mn"]
[null,null,null,null,null,null,null,null,null,null,null,null,null,null,null,null,null,null,null,null,null,null,null,null,"St Johnswort","Hypericum perforatum","P","low","mid, late","yellow","1-3","dry","partial","5.1-7.5","slow",1800000,80,"WD,MWD,SPD",null,"UPL","any,pa"]
[null,null,null,null,null,null,null,null,null,null,null,null,null,null,null,null,null,null,null,null,null,null,null,null,"roundheaded bushclover","Lespedeza capitata","P","very low","mid","white","2-4","dry, med","full","5.7-8.2","none",159000,180,"MWD, ED","provides food for birds and small wildlife","FACU","VA,ANY,ny,mi,mn"]
[null,null,null,null,null,null,null,null,null,null,null,null,null,null,null,null,null,null,null,null,null,null,null,null,"rough blazing star","Liatris aspera","P","high","mid","purple","3-5","dry, med","full","6.6-7.5","slow",256000,400,"WD,MWD","scarify seed helps, shortest and last to bloom of liatris","FAC","any,mi,ny,mn"]
[null,null,{"$f":"IF(A57=\"\",\"\",LOOKUP(A57,common_name,seeds_per_lb))","v":""},null,null,null,null,null,null,null,null,null,null,null,null,null,null,null,null,null,null,null,null,null,"prairie blazing star","Liatris pycnostachya","P","high","mid, late","purple","4","med","full","6.5-7.5","slow",176000,225,null,"honey bees, bumble bees (n/p)","FAC","any,mn"]
[null,null,null,null,null,null,null,null,null,null,null,null,null,null,null,null,null,null,null,null,null,null,null,null,"dense blazing star","Liatris spicata","P","high ","early,mid","purple","3-4","med, wet","full to partial","5.6-7.5","slow",125000,180,"WD,MWD","good for rain gardens","FACW","VA,ANY,pa,ny"]
[null,null,null,null,null,null,null,null,null,null,null,null,null,null,null,null,null,null,null,null,null,null,null,null,"perennial blue flax","Linum perenne","P","high ","early, late","blue","2-3","dry, med","full to partial","6.1-7.8","slow",295000,20,null,"not native and short lived","FAC","VA,ANY,pa"]
[null,null,null,null,null,null,null,null,null,null,null,null,null,null,null,null,null,null,null,null,null,null,null,null,"cardinal flower","Lobelia  cardinalis","P","high ","mid, late","red","1-6"," med, wet","full to partial","5.8-7.8","none",7320000,560,"SPD,PD","provides nectar for bees and hummingbirds, butterflies","OBL","VA,ANY,ny,pa,mi"]
[null,null,null,null,null,null,null,null,null,null,null,null,null,null,null,null,null,null,null,null,null,null,null,null,"great blue lobelia","Lobelia siphilitica","P","very high","mid, late","purple","2-5"," med, wet","full to partial","6.0-7.5","n/a",6400000,280,"SPD,PD",null,"FACW","VA,ANY,ny,pa,mi,mn"]
[null,null,null,null,null,null,null,null,null,null,null,null,null,null,null,null,null,null,null,null,null,null,null,null,"palespike lobelia","Lobelia spicata","P","high","early","purple","2-3","dry, medium","sun-part shade",null,null,14400000,24,"WD","humming birds","FAC","any,nh"]
[null,null,null,null,null,null,null,null,null,null,null,null,null,null,null,null,null,null,null,null,null,null,null,null,"lupine","Lupinus perennis","P","high ","early","blue","1-2","dry, med","full to partial","4.6-7.2","none",18800,200,"MWD, ED","provides food and habitat for butterflies, not for restoration","FACU","md,nh,any,pa,mi"]
[null,null,null,null,null,null,null,null,null,null,null,null,null,null,null,null,null,null,null,null,null,null,null,null,"bigleaf lupine","Lupinus polyphyllus","P","high","early,mid","purple","2-3","dry","full-part",null,null,75000,24,null,null,"FACU","any"]
[null,null,null,null,null,null,null,null,null,null,null,null,null,null,null,null,null,null,null,null,null,null,null,null,"Alleghany monkey flower","Mimulus  ringens","P","medium,low"," mid","light purple","1-3","medium, wet","full to partial","5.6-7.5","n/a",36800000,180,"SPD,PD","provides cover for wildlife","OBL","VA,ANY,pa"]
[null,null,null,null,null,null,null,null,null,null,null,null,null,null,null,null,null,null,null,null,null,null,null,null,"bee balm","Monarda didyma","P","high","mid","red","2-4","wet, medium","sun-part",null,"mod",800000,400,"WD,MWD, SPD ","Attracts hummingbirds and great nectar source for butterflies","FAC","VA,ANY,pa"]
[null,null,null,null,null,null,null,null,null,null,null,null,null,null,null,null,null,null,null,null,null,null,null,null,"wild bergamot","Monarda fistulosa","P","very high ","early, mid","purple/ dark pink","2-5","dry, med","full to partial","6-8","mod",1200000,240,"WD,MWD","provides nectar for bees and hummingbirds, butterflies","FACU","VA,ANY,ny,nh,me,mi,mn"]
[null,null,null,null,null,null,null,null,null,null,null,null,null,null,null,null,null,null,null,null,null,null,null,null,"purple bergamot","Monarda media","P","very high ","early","purple","2-4","med","full to partial","6.0-7.8","mod",1120000,240,null,"attracts bees and butterflies","FAC","any,ny,md"]
[null,null,null,null,null,null,null,null,null,null,null,null,null,null,null,null,null,null,null,null,null,null,null,null,"spotted beebalm","Monarda punctata","BI","high ","early, mid","pink/ white",".5-3","dry","full","6.8-7.2","mod",1440000,180,null,"sensitive to overwatering","UPL","any,ny,nh,pa"]
[null,null,null,null,null,null,null,null,null,null,null,null,null,null,null,null,null,null,null,null,null,null,null,null,"evening primrose","Oenothera biennis","BI","medium","mid,late","yellow","4-5","dry, med","full","6.1-7.8","none",1376000,32,null,"may become weedy or invasive","FACU","any,ny,mn"]
[null,null,null,null,null,null,null,null,null,null,null,null,null,null,null,null,null,null,null,null,null,null,null,null,"Riddell's Goldenrod","Oligoneuron riddellii","P","high"," late","yellow","2-4","wet","full","7.0-8.0","some",1424000,200,null,"listed as species at risk, Not Native to NY","OBL","any"]
[null,null,null,null,null,null,null,null,null,null,null,null,null,null,null,null,null,null,null,null,null,null,null,null,"stiff goldenrod","Oligoneuron rigidum","P","high ","late","yellow","4","dry, med","full-part","5.5-7.5","rapid",1000000,220,null,null,"FACU","any,md,mi"]
[null,null,null,null,null,null,null,null,null,null,null,null,null,null,null,null,null,null,null,null,null,null,null,null,"eastern grey beardtongue","Penstemon canescens","P","high","early","purple","1-2","dry","sun-part",null,null,1000000,400,"WD","early season color","FAC","any"]
[null,null,null,null,null,null,null,null,null,null,null,null,null,null,null,null,null,null,null,null,null,null,null,null,"tall white beard tongue ","Penstemon digitalis","P","high ","early","white","2-5","dry, med","full to partial","5.5-7","mod",2000000,108,"WD,MWD","a durable early plant","FAC","nh,any,ny,pa,me,md"]
[null,null,null,null,null,null,null,null,null,null,null,null,null,null,null,null,null,null,null,null,null,null,null,null,"hairy beardtongue","Penstemon hirsutus","P","high ","early,mid","Pale violet","2-3","dry, med","full-shade","6.0-7.5","none",3250000,240,"WD,MWD",null,"FACU","mi,nh,ny,any"]
[null,null,null,null,null,null,null,null,null,null,null,null,null,null,null,null,null,null,null,null,null,null,null,null,"eastern smooth beardtongue","Penstemon laevigatus","P","high","early","purple/white","2-4","dry","full-shade",null,null,1500000,240,"WD,MWD","meadows woods roadsides","FACU","VA,ANY"]
[null,null,null,null,null,null,null,null,null,null,null,null,null,null,null,null,null,null,null,null,null,null,null,null,"obedient plant","Physostegia virginiana","P","high","late","pink/white","2 - 4"," medium, wet","Sun/part shade ",null,"rapid",176000,640,null,"deer resistant, Attracts fall migrating hummingbirds","FACW","any,nh"]
[null,null,null,null,null,null,null,null,null,null,null,null,null,null,null,null,null,null,null,null,null,null,null,null,"Virginia mountain mint","Pycnanthemum virginianum","P","high ","mid, late","white","2-3","med, wet","full to partial","5.0-7.5","slow",3840000,480,"WD,MWD","very fragrant","FACW","VA,ANY,ny,nh,pa,me,mn"]
[null,null,null,null,null,null,null,null,null,null,null,null,null,null,null,null,null,null,null,null,null,null,null,null,"gray headed coneflower","Ratibida pinnata","P","medium","mid","yellow","3-5","dry, med","full to partial","5.6-6.8","none",550000,60,"WD,MWD",null,"FAC","any,ny,mi,mn"]
[null,null,null,null,null,null,null,null,null,null,null,null,null,null,null,null,null,null,null,null,null,null,null,null,"orange coneflower","Rudbeckia fulgida","P","high","mid, late","yellow ","2 - 4   ","medium,wet","sun, part sun",null,null,496000,248,null,"Drought tolerant, birds eat seeds ","OBL","any"]
[null,null,null,null,null,null,null,null,null,null,null,null,null,null,null,null,null,null,null,null,null,null,null,null,"black-eyed susan","Rudbeckia hirta","BI","low ","early, mid, late","yellow/ orange","2-3","dry, med","full to partial","6-7","none",1500000,24,"SPD, WD","food an cover for birds","FACU","VA,ANY,ny,md,mi,mn"]
[null,null,null,null,null,null,null,null,null,null,null,null,null,null,null,null,null,null,null,null,null,null,null,null,"cutleaf coneflower","Rudbeckia lacinata","P","high","mid","yellow","3-6","mdium, medium","sun-part",null,"slow",240000,200,null,"honey bees, native bees (n/p), goldfinches, deer resistanat","FACU","any,me"]
[null,null,null,null,null,null,null,null,null,null,null,null,null,null,null,null,null,null,null,null,null,null,null,null,"browneyed Susan","Rudbeckia triloba","P","high","late"," yellow","1-3","dry,medium","sun-part",null,null,536000,80,"WD.MWD","native bees, bumble bees (n), goldfinches","FACU","any"]
[null,null,null,null,null,null,null,null,null,null,null,null,null,null,null,null,null,null,null,null,null,null,null,null,"wild senna","Senna hebecarpa","P","medium ","mid","yellow","4-6","dry, med","full to partial","6.5-7.5","n/a",22680,18,null,"short flowering legumes","FACW","ny,any,md"]
[null,null,null,null,null,null,null,null,null,null,null,null,null,null,null,null,null,null,null,null,null,null,null,null,"blue-eyed grass","Sisyrinchium angustifolium","P","high","early","blue","1","dry,medium","sun-part",null,null,480000,200,"WD,SPW,PD",null,"FAC","any"]
[null,null,null,null,null,null,null,null,null,null,null,null,null,null,null,null,null,null,null,null,null,null,null,null,"bluestem goldenrod","Solidago caesia","P","high"," late","yellow","1-3","dry, med","full to partial","5.5-7","slow",4000000,450,"WD,MWD","wood edges","FACU","ny,any"]
[null,null,null,null,null,null,null,null,null,null,null,null,null,null,null,null,null,null,null,null,null,null,null,null,"zigzag goldenrod","Solidago flexicaulis","P","high","late","yellow","1-4","dry, medium","sun-shade",null,null,1344000,900,null,"moderate spreader","FACU","any"]
[null,null,null,null,null,null,null,null,null,null,null,null,null,null,null,null,null,null,null,null,null,null,null,null,"early goldenrod","Solidago juncea","P","high ","mid, late","yellow","3-6","dry","full to partial","5.0-7.0","n/a",2000000,220,null,"first goldenrod of the season to bloom","UPL","ny,any,nh"]
[null,null,null,null,null,null,null,null,null,null,null,null,null,null,null,null,null,null,null,null,null,null,null,null,"gray goldenrod","Solidago nemoralis","P","very high "," late","yellow",".5-2.5","dry","full","6.5-7.5","rapid",1008000,260,"WD,MWD","survives in low fertility soil, provides nectar for butterflies","UPL","ny,any,md"]
[null,null,null,null,null,null,null,null,null,null,null,null,null,null,null,null,null,null,null,null,null,null,null,null,"rough leaved goldenrod","Solidago patula","P","high"," late","yellow","4-5","wet","full-partial","4.5-7","rapid",900000,400,"SPD,PD",null,"OBL","ny,any"]
[null,null,null,null,null,null,null,null,null,null,null,null,null,null,null,null,null,null,null,null,null,null,null,null,"wrinkleleaf goldenrod","Solidago rugosa","P","high","late","yellow","2-6","dry,medium","sun-part","5-7.5","mod",1480000,320,"WD,MWD","\"fireworks\" will not spread","FAC","VA,ANY,ny"]
[null,null,null,null,null,null,null,null,null,null,null,null,null,null,null,null,null,null,null,null,null,null,null,null,"showy goldenrod","Solidago speciosa","P","high"," late","yellow","1-5","dry","full to partial","5.1-7.5","n/a",1600000,160,"WD,MWD","very attractive to butterflies, bees, ants, beetles","UPL","VA,ANY,ny,nh,mn,"]
[null,null,null,null,null,null,null,null,null,null,null,null,null,null,null,null,null,null,null,null,null,null,null,null,"common blue wood aster","Symphyotrichum cordifolium","P","high","late","blue-purple","2-3","dry, medium","part sun, shade","5.7-7.5","mod",2000000,260,"MWD,WD","abundant seed producer,in woodland clearings","UPL","any"]
[null,null,null,null,null,null,null,null,null,null,null,null,null,null,null,null,null,null,null,null,null,null,null,null,"smooth blue aster","Symphyotrichum laeve","P","high"," late","blue/ purple","1-3","dry, med","full","5.8-7.8","mod",1000000,220,"MWD,WD","fiborous root system","FACU","VA,ANY,ny,nh,md,mi,mn"]
[null,null,null,null,null,null,null,null,null,null,null,null,null,null,null,null,null,null,null,null,null,null,null,null,"white panicle aster","Symphyotrichum lanceolatum","P","high","mid,late","white","2-5","medium","sun-part",null,"mid",2256000,null,"WD","1-5% in a mix","FACW","any"]
[null,null,null,null,null,null,null,null,null,null,null,null,null,null,null,null,null,null,null,null,null,null,null,null,"calico aster","Symphyotrichum lateriflorum","P","high"," late","white/ changng","1-5","dry, med","full-shade","6.1-6.5","some",3200000,260,null,"found in forested areas, horizontal branches","FAC","any,ny,nh,md"]
[null,null,null,null,null,null,null,null,null,null,null,null,null,null,null,null,null,null,null,null,null,null,null,null,"New England aster","Symphyotrichum novae-angliae","P","very high"," late","purple","2-6","med, wet","full to partial","5.6-7.5","n/a",1120000,280,"WD, MWD","provides food and cover for wildlife and butterflies","FACW","VA,ANY,ny,pa,me,md,mi,mn"]
[null,null,null,null,null,null,null,null,null,null,null,null,null,null,null,null,null,null,null,null,null,null,null,null,"New York aster","Symphyotrichum novi-belgii","P","high"," late","purple","4-5","med, wet","full ","5.5-7","mod",800000,240,"SPD,PD,MWD","prone to mildew","FACW","VA,ANY,ny,nh,pa,me"]
[null,null,null,null,null,null,null,null,null,null,null,null,null,null,null,null,null,null,null,null,null,null,null,null,"aromatic aster","Symphyotrichum oblongifolium","P","high","late","violet","2-3","dry, medium","sun",null,null,816000,220,"WD","1-5% in a mix","UPL","any,md"]
[null,null,null,null,null,null,null,null,null,null,null,null,null,null,null,null,null,null,null,null,null,null,null,null,"zigzag aster","Symphyotrichum prenanthoides","P","high"," late","pink/ purple","2-4","dry, med","partial to shade","5.5-7.2","mod",700000,180,"WD,MWD,SPD","provides nectar for butterflies","FAC","any,md"]
[null,null,null,null,null,null,null,null,null,null,null,null,null,null,null,null,null,null,null,null,null,null,null,null,"purplestem aster","Symphyotrichum puniceum","P","high","late","violet","3-6","medium, wet","sun","4.5-7.5","slow",1216000,280,"WD,MWD, SPW,PD","nectar for butterflies","OBL","any"]
[null,null,null,null,null,null,null,null,null,null,null,null,null,null,null,null,null,null,null,null,null,null,null,null,"Ohio spiderwort","Tradescantia ohiensis","P","high","early, mid","purple","1-3","dry, med","full to partial","6.6-7.5","n/a",128000,160,"WD,MWD, SPW,PD","self seeds, can become invasive","FACU","ny,any,md"]
[null,null,null,null,null,null,null,null,null,null,null,null,null,null,null,null,null,null,null,null,null,null,null,null,"zigzag spiderwort","Tradescantia subaspera","P","high","mid","purple","2-3","med, wet","partial   ","5-6-7.8","n/a",130000,64,"WD,MWD, SPW,PD","bloom period fairly long. Pollinated by bees, sytphid flies","FACW","ny,any"]
[null,null,null,null,null,null,null,null,null,null,null,null,null,null,null,null,null,null,null,null,null,null,null,null,"alsike clover","Trifolium hybridum","P","high","early,late","pink-white","2-4","dry, med","full","5.6-7.5","none",680000,3,"WD,MWD, SPW,PD","introduced","FACU","ny,any,pa,md"]
[null,null,null,null,null,null,null,null,null,null,null,null,null,null,null,null,null,null,null,null,null,null,null,null,"blue vervain","Verbena hastata","P","medium ","early, mid","purple","2-5"," med, wet","full to partial","5.6-7.5","n/a",1544000,60,"SPD, PD","easily seeded","FACW","VA,ANY,ny,pa,mi"]
[null,null,null,null,null,null,null,null,null,null,null,null,null,null,null,null,null,null,null,null,null,null,null,null,"hoary vervain","Verbena stricta","P","high","mid","purple","4-6","dry, med","full","5.6-7.5","slow",1000000,80,null,"does not compete with vigorous grasses","FACU","ny,any"]
[null,null,null,null,null,null,null,null,null,null,null,null,null,null,null,null,null,null,null,null,null,null,null,null,"white vervain","Verbena urticifolia","P","medium    ","early","white","3-5","dry, med","full to partial","6.6-7.5","n/a",480000,120,"SPD, WD",null,"FAC","ny,any"]
[null,null,null,null,null,null,null,null,null,null,null,null,null,null,null,null,null,null,null,null,null,null,null,null,"wingstem","Verbesina alternifolia","P","medium,low","mid, late","yellow","3-8"," med, wet","full to partial","n/a","n/a",180000,180,"SPD, PD","threatened in NYS","FACW","ny,any,pa"]
[null,null,null,null,null,null,null,null,null,null,null,null,null,null,null,null,null,null,null,null,null,null,null,null,"NY ironweed","Vernonia noveboracensis","P","high","mid","purple","4-6"," med, wet","full to partial","5.1-7.5","none",300000,220,null,"deer and rabbit resistance","FACW","VA,ANY,ny"]
[null,null,null,null,null,null,null,null,null,null,null,null,null,null,null,null,null,null,null,null,null,null,null,null,"culver's root","Veronicastrum virginicum","P","high ","early, mid","white","2-6","dry, med","full to partial","6.6-7.8","n/a",12400000,640,null,"attracts butterflies and bees","FAC","ny,any,nh,mn"]
[null,null,null,null,null,null,null,null,null,null,null,null,null,null,null,null,null,null,null,null,null,null,null,null,"meadow zizia","Zizia aptera","P","high","early","yellow","1-3","dry","sun-part",null,null,176000,230,null,"endangered inCT, great for warerfowl","FACU","any,"]
[null,null,null,null,null,null,null,null,null,null,null,null,null,null,null,null,null,null,null,null,null,null,null,null,"golden alexanders","Zizia aurea","P","high","early","yellow","1-2","dry, med","full to partial","6.1-7.8","n/a",176000,180,"SPD, WD","one of the earliest blooming natives","FAC","ny,any,md,mn"]

{"sheet":"SEEDINGPLANSHEET","index":3,"n_rows":62,"n_cols":14,"rows_kept":62,"cut":false,"hidden":false,"merged":[]}
[null,null,"Name:",null,null,null,"Date:",{"$f":"TODAY()","v":"2020-01-02"}]
[null,null,"Prepared By:",null,null,null,"Tract No:"]
[null,null,null,null,null,null,"Field No:"]
[null,null,null,null,null,null,"Contract No:",null,null,null,null,null,null,"DELETES UNUSED ROWS"]
[null,null,null,null,null,null,"Area of Field (in Acres):",1]
[]
[]
[]
[null,"Scientific Name","Common Name","PLS for lot of seed","lbs/A (PLS) Seeding Rate","Seeds/ sq Foot (PLS)","Seeds/ sq foot (Bulk)","lbs/A (Bulk) Seed ordered","Estimated Cost (lb/A) **"]
[null,"FORBS/LEGUMES",null,null,null,null,null,null,null,null,"**NEED TO RESET THIS SHEET TO PUT THE LINES BACK"]
[1,{"$f":"IF(ISNA(VLOOKUP(calculator!A8,NEWALLSPECIES,2,FALSE)),\"\",VLOOKUP(calculator!A8,NEWALLSPECIES,2,FALSE))","v":""},{"$f":"IF(ISBLANK(calculator!A8),\"\",calculator!A8)","v":""},{"$f":"IF(C11=\"\",\"\",calculator!R8)","v":""},{"$f":"IF(C11=\"\",\"\",calculator!G8)","v":""},{"$f":"IF(C11=\"\",\"\",calculator!K8)","v":""},{"$f":"IF(C11=\"\",\"\",calculator!V8)","v":""},{"$f":"IF(C11=\"\",\"\",$H$5*calculator!H8)","v":""},{"$f":"IF(C11=\"\",\"\",H11*calculator!F8)","v":""},null,"**WHEN CALCULATOR IS RESET, THIS SHEET WILL CLEAR"]
[2,{"$f":"IF(ISNA(VLOOKUP(calculator!A9,NEWALLSPECIES,2,FALSE)),\"\",VLOOKUP(calculator!A9,NEWALLSPECIES,2,FALSE))","v":""},{"$f":"IF(ISBLANK(calculator!A9),\"\",calculator!A9)","v":""},{"$f":"IF(C12=\"\",\"\",calculator!R9)","v":""},{"$f":"IF(C12=\"\",\"\",calculator!G9)","v":""},{"$f":"IF(C12=\"\",\"\",calculator!K9)","v":""},{"$f":"IF(C12=\"\",\"\",calculator!V9)","v":""},{"$f":"IF(C12=\"\",\"\",$H$5*calculator!H9)","v":""},{"$f":"IF(C12=\"\",\"\",H12*calculator!F9)","v":""}]
[3,{"$f":"IF(ISNA(VLOOKUP(calculator!A10,NEWALLSPECIES,2,FALSE)),\"\",VLOOKUP(calculator!A10,NEWALLSPECIES,2,FALSE))","v":""},{"$f":"IF(ISBLANK(calculator!A10),\"\",calculator!A10)","v":""},{"$f":"IF(C13=\"\",\"\",calculator!R10)","v":""},{"$f":"IF(C13=\"\",\"\",calculator!G10)","v":""},{"$f":"IF(C13=\"\",\"\",calculator!K10)","v":""},{"$f":"IF(C13=\"\",\"\",calculator!V10)","v":""},{"$f":"IF(C13=\"\",\"\",$H$5*calculator!H10)","v":""},{"$f":"IF(C13=\"\",\"\",H13*calculator!F10)","v":""}]
[4,{"$f":"IF(ISNA(VLOOKUP(calculator!A11,NEWALLSPECIES,2,FALSE)),\"\",VLOOKUP(calculator!A11,NEWALLSPECIES,2,FALSE))","v":""},{"$f":"IF(ISBLANK(calculator!A11),\"\",calculator!A11)","v":""},{"$f":"IF(C14=\"\",\"\",calculator!R11)","v":""},{"$f":"IF(C14=\"\",\"\",calculator!G11)","v":""},{"$f":"IF(C14=\"\",\"\",calculator!K11)","v":""},{"$f":"IF(C14=\"\",\"\",calculator!V11)","v":""},{"$f":"IF(C14=\"\",\"\",$H$5*calculator!H11)","v":""},{"$f":"IF(C14=\"\",\"\",H14*calculator!F11)","v":""}]
[5,{"$f":"IF(ISNA(VLOOKUP(calculator!A12,NEWALLSPECIES,2,FALSE)),\"\",VLOOKUP(calculator!A12,NEWALLSPECIES,2,FALSE))","v":""},{"$f":"IF(ISBLANK(calculator!A12),\"\",calculator!A12)","v":""},{"$f":"IF(C15=\"\",\"\",calculator!R12)","v":""},{"$f":"IF(C15=\"\",\"\",calculator!G12)","v":""},{"$f":"IF(C15=\"\",\"\",calculator!K12)","v":""},{"$f":"IF(C15=\"\",\"\",calculator!V12)","v":""},{"$f":"IF(C15=\"\",\"\",$H$5*calculator!H12)","v":""},{"$f":"IF(C15=\"\",\"\",H15*calculator!F12)","v":""}]
[6,{"$f":"IF(ISNA(VLOOKUP(calculator!A13,NEWALLSPECIES,2,FALSE)),\"\",VLOOKUP(calculator!A13,NEWALLSPECIES,2,FALSE))","v":""},{"$f":"IF(ISBLANK(calculator!A13),\"\",calculator!A13)","v":""},{"$f":"IF(C16=\"\",\"\",calculator!R13)","v":""},{"$f":"IF(C16=\"\",\"\",calculator!G13)","v":""},{"$f":"IF(C16=\"\",\"\",calculator!K13)","v":""},{"$f":"IF(C16=\"\",\"\",calculator!V13)","v":""},{"$f":"IF(C16=\"\",\"\",$H$5*calculator!H13)","v":""},{"$f":"IF(C16=\"\",\"\",H16*calculator!F13)","v":""}]
[7,{"$f":"IF(ISNA(VLOOKUP(calculator!A14,NEWALLSPECIES,2,FALSE)),\"\",VLOOKUP(calculator!A14,NEWALLSPECIES,2,FALSE))","v":""},{"$f":"IF(ISBLANK(calculator!A14),\"\",calculator!A14)","v":""},{"$f":"IF(C17=\"\",\"\",calculator!R14)","v":""},{"$f":"IF(C17=\"\",\"\",calculator!G14)","v":""},{"$f":"IF(C17=\"\",\"\",calculator!K14)","v":""},{"$f":"IF(C17=\"\",\"\",calculator!V14)","v":""},{"$f":"IF(C17=\"\",\"\",$H$5*calculator!H14)","v":""},{"$f":"IF(C17=\"\",\"\",H17*calculator!F14)","v":""}]
[8,{"$f":"IF(ISNA(VLOOKUP(calculator!A15,NEWALLSPECIES,2,FALSE)),\"\",VLOOKUP(calculator!A15,NEWALLSPECIES,2,FALSE))","v":""},{"$f":"IF(ISBLANK(calculator!A15),\"\",calculator!A15)","v":""},{"$f":"IF(C18=\"\",\"\",calculator!R15)","v":""},{"$f":"IF(C18=\"\",\"\",calculator!G15)","v":""},{"$f":"IF(C18=\"\",\"\",calculator!K15)","v":""},{"$f":"IF(C18=\"\",\"\",calculator!V15)","v":""},{"$f":"IF(C18=\"\",\"\",$H$5*calculator!H15)","v":""},{"$f":"IF(C18=\"\",\"\",H18*calculator!F15)","v":""}]
[9,{"$f":"IF(ISNA(VLOOKUP(calculator!A16,NEWALLSPECIES,2,FALSE)),\"\",VLOOKUP(calculator!A16,NEWALLSPECIES,2,FALSE))","v":""},{"$f":"IF(ISBLANK(calculator!A16),\"\",calculator!A16)","v":""},{"$f":"IF(C19=\"\",\"\",calculator!R16)","v":""},{"$f":"IF(C19=\"\",\"\",calculator!G16)","v":""},{"$f":"IF(C19=\"\",\"\",calculator!K16)","v":""},{"$f":"IF(C19=\"\",\"\",calculator!V16)","v":""},{"$f":"IF(C19=\"\",\"\",$H$5*calculator!H16)","v":""},{"$f":"IF(C19=\"\",\"\",H19*calculator!F16)","v":""}]
[10,{"$f":"IF(ISNA(VLOOKUP(calculator!A17,NEWALLSPECIES,2,FALSE)),\"\",VLOOKUP(calculator!A17,NEWALLSPECIES,2,FALSE))","v":""},{"$f":"IF(ISBLANK(calculator!A17),\"\",calculator!A17)","v":""},{"$f":"IF(C20=\"\",\"\",calculator!R17)","v":""},{"$f":"IF(C20=\"\",\"\",calculator!G17)","v":""},{"$f":"IF(C20=\"\",\"\",calculator!K17)","v":""},{"$f":"IF(C20=\"\",\"\",calculator!V17)","v":""},{"$f":"IF(C20=\"\",\"\",$H$5*calculator!H17)","v":""},{"$f":"IF(C20=\"\",\"\",H20*calculator!F17)","v":""}]
[11,{"$f":"IF(ISNA(VLOOKUP(calculator!A18,NEWALLSPECIES,2,FALSE)),\"\",VLOOKUP(calculator!A18,NEWALLSPECIES,2,FALSE))","v":""},{"$f":"IF(ISBLANK(calculator!A18),\"\",calculator!A18)","v":""},{"$f":"IF(C21=\"\",\"\",calculator!R18)","v":""},{"$f":"IF(C21=\"\",\"\",calculator!G18)","v":""},{"$f":"IF(C21=\"\",\"\",calculator!K18)","v":""},{"$f":"IF(C21=\"\",\"\",calculator!V18)","v":""},{"$f":"IF(C21=\"\",\"\",$H$5*calculator!H18)","v":""},{"$f":"IF(C21=\"\",\"\",H21*calculator!F18)","v":""}]
[12,{"$f":"IF(ISNA(VLOOKUP(calculator!A19,NEWALLSPECIES,2,FALSE)),\"\",VLOOKUP(calculator!A19,NEWALLSPECIES,2,FALSE))","v":""},{"$f":"IF(ISBLANK(calculator!A19),\"\",calculator!A19)","v":""},{"$f":"IF(C22=\"\",\"\",calculator!R19)","v":""},{"$f":"IF(C22=\"\",\"\",calculator!G19)","v":""},{"$f":"IF(C22=\"\",\"\",calculator!K19)","v":""},{"$f":"IF(C22=\"\",\"\",calculator!V19)","v":""},{"$f":"IF(C22=\"\",\"\",$H$5*calculator!H19)","v":""},{"$f":"IF(C22=\"\",\"\",H22*calculator!F19)","v":""}]
[13,{"$f":"IF(ISNA(VLOOKUP(calculator!A20,NEWALLSPECIES,2,FALSE)),\"\",VLOOKUP(calculator!A20,NEWALLSPECIES,2,FALSE))","v":""},{"$f":"IF(ISBLANK(calculator!A20),\"\",calculator!A20)","v":""},{"$f":"IF(C23=\"\",\"\",calculator!R20)","v":""},{"$f":"IF(C23=\"\",\"\",calculator!G20)","v":""},{"$f":"IF(C23=\"\",\"\",calculator!K20)","v":""},{"$f":"IF(C23=\"\",\"\",calculator!V20)","v":""},{"$f":"IF(C23=\"\",\"\",$H$5*calculator!H20)","v":""},{"$f":"IF(C23=\"\",\"\",H23*calculator!F20)","v":""}]
[14,{"$f":"IF(ISNA(VLOOKUP(calculator!A21,NEWALLSPECIES,2,FALSE)),\"\",VLOOKUP(calculator!A21,NEWALLSPECIES,2,FALSE))","v":""},{"$f":"IF(ISBLANK(calculator!A21),\"\",calculator!A21)","v":""},{"$f":"IF(C24=\"\",\"\",calculator!R21)","v":""},{"$f":"IF(C24=\"\",\"\",calculator!G21)","v":""},{"$f":"IF(C24=\"\",\"\",calculator!K21)","v":""},{"$f":"IF(C24=\"\",\"\",calculator!V21)","v":""},{"$f":"IF(C24=\"\",\"\",$H$5*calculator!H21)","v":""},{"$f":"IF(C24=\"\",\"\",H24*calculator!F21)","v":""}]
[15,{"$f":"IF(ISNA(VLOOKUP(calculator!A22,NEWALLSPECIES,2,FALSE)),\"\",VLOOKUP(calculator!A22,NEWALLSPECIES,2,FALSE))","v":""},{"$f":"IF(ISBLANK(calculator!A22),\"\",calculator!A22)","v":""},{"$f":"IF(C25=\"\",\"\",calculator!R22)","v":""},{"$f":"IF(C25=\"\",\"\",calculator!G22)","v":""},{"$f":"IF(C25=\"\",\"\",calculator!K22)","v":""},{"$f":"IF(C25=\"\",\"\",calculator!V22)","v":""},{"$f":"IF(C25=\"\",\"\",$H$5*calculator!H22)","v":""},{"$f":"IF(C25=\"\",\"\",H25*calculator!F22)","v":""}]
[null,"GRASSES",null,{"$f":"IF(C26=\"\",\"\",calculator!R23)","v":""},null,{"$f":"IF(C26=\"\",\"\",calculator!K27)","v":""},{"$f":"IF(C26=\"\",\"\",calculator!V27)","v":""},{"$f":"IF(C26=\"\",\"\",$H$5*calculator!H27)","v":""},{"$f":"IF(C26=\"\",\"\",H26*calculator!F23)","v":""}]
[1,{"$f":"IF(ISNA(VLOOKUP(calculator!A28,grassy,2,FALSE)),\"  \",VLOOKUP(calculator!A28,grassy,2,FALSE))","v":"  "},{"$f":"IF(ISBLANK(calculator!A28),\"\",calculator!A28)","v":""},{"$f":"IF(C27=\"\",\"\",calculator!R28)","v":""},{"$f":"IF(C27=\"\",\"\",calculator!G28)","v":""},{"$f":"IF(C27=\"\",\"\",calculator!K28)","v":""},{"$f":"IF(C27=\"\",\"\",calculator!V28)","v":""},{"$f":"IF(C27=\"\",\"\",$H$5*calculator!H28)","v":""},{"$f":"IF(C27=\"\",\"\",H27*calculator!F24)","v":""}]
[2,{"$f":"IF(ISNA(VLOOKUP(calculator!A29,grassy,2,FALSE)),\"  \",VLOOKUP(calculator!A29,grassy,2,FALSE))","v":"  "},{"$f":"IF(ISBLANK(calculator!A29),\"\",calculator!A29)","v":""},{"$f":"IF(C28=\"\",\"\",calculator!R29)","v":""},{"$f":"IF(C28=\"\",\"\",calculator!G29)","v":""},{"$f":"IF(C28=\"\",\"\",calculator!K29)","v":""},{"$f":"IF(C28=\"\",\"\",calculator!V29)","v":""},{"$f":"IF(C28=\"\",\"\",$H$5*calculator!H29)","v":""},{"$f":"IF(C28=\"\",\"\",H28*calculator!F25)","v":""}]
[3,{"$f":"IF(ISNA(VLOOKUP(calculator!A30,grassy,2,FALSE)),\"  \",VLOOKUP(calculator!A30,grassy,2,FALSE))","v":"  "},{"$f":"IF(ISBLANK(calculator!A30),\"\",calculator!A30)","v":""},{"$f":"IF(C29=\"\",\"\",calculator!R30)","v":""},{"$f":"IF(C29=\"\",\"\",calculator!G30)","v":""},{"$f":"IF(C29=\"\",\"\",calculator!K30)","v":""},{"$f":"IF(C29=\"\",\"\",calculator!V30)","v":""},{"$f":"IF(C29=\"\",\"\",$H$5*calculator!H30)","v":""},{"$f":"IF(C29=\"\",\"\",H29*calculator!F26)","v":""}]
[4,{"$f":"IF(ISNA(VLOOKUP(calculator!A31,grassy,2,FALSE)),\"  \",VLOOKUP(calculator!A31,grassy,2,FALSE))","v":"  "},{"$f":"IF(ISBLANK(calculator!A31),\"\",calculator!A31)","v":""},{"$f":"IF(C30=\"\",\"\",calculator!R31)","v":""},{"$f":"IF(C30=\"\",\"\",calculator!G31)","v":""},{"$f":"IF(C30=\"\",\"\",calculator!K31)","v":""},{"$f":"IF(C30=\"\",\"\",calculator!V31)","v":""},{"$f":"IF(C30=\"\",\"\",$H$5*calculator!H31)","v":""},{"$f":"IF(C30=\"\",\"\",H30*calculator!F27)","v":""}]
[5,{"$f":"IF(ISNA(VLOOKUP(calculator!A32,grassy,2,FALSE)),\"  \",VLOOKUP(calculator!A32,grassy,2,FALSE))","v":"  "},{"$f":"IF(ISBLANK(calculator!A32),\"\",calculator!A32)","v":""},{"$f":"IF(C31=\"\",\"\",calculator!R32)","v":""},{"$f":"IF(C31=\"\",\"\",calculator!G32)","v":""},{"$f":"IF(C31=\"\",\"\",calculator!K32)","v":""},{"$f":"IF(C31=\"\",\"\",calculator!V32)","v":""},{"$f":"IF(C31=\"\",\"\",$H$5*calculator!H32)","v":""},{"$f":"IF(C31=\"\",\"\",H31*calculator!F28)","v":""}]
[6,{"$f":"IF(ISNA(VLOOKUP(calculator!A33,grassy,2,FALSE)),\"  \",VLOOKUP(calculator!A33,grassy,2,FALSE))","v":"  "},{"$f":"IF(ISBLANK(calculator!A33),\"\",calculator!A33)","v":""},{"$f":"IF(C32=\"\",\"\",calculator!R33)","v":""},{"$f":"IF(C32=\"\",\"\",calculator!G33)","v":""},{"$f":"IF(C32=\"\",\"\",calculator!K33)","v":""},{"$f":"IF(C32=\"\",\"\",calculator!V33)","v":""},{"$f":"IF(C32=\"\",\"\",$H$5*calculator!H33)","v":""},{"$f":"IF(C32=\"\",\"\",H32*calculator!F29)","v":""}]
[7,{"$f":"IF(ISNA(VLOOKUP(calculator!A34,grassy,2,FALSE)),\"  \",VLOOKUP(calculator!A34,grassy,2,FALSE))","v":"  "},{"$f":"IF(ISBLANK(calculator!A34),\"\",calculator!A34)","v":""},{"$f":"IF(C33=\"\",\"\",calculator!R34)","v":""},{"$f":"IF(C33=\"\",\"\",calculator!G34)","v":""},{"$f":"IF(C33=\"\",\"\",calculator!K34)","v":""},{"$f":"IF(C33=\"\",\"\",calculator!V34)","v":""},{"$f":"IF(C33=\"\",\"\",$H$5*calculator!H34)","v":""},{"$f":"IF(C33=\"\",\"\",H33*calculator!F30)","v":""}]
[8,{"$f":"IF(ISNA(VLOOKUP(calculator!A35,grassy,2,FALSE)),\"  \",VLOOKUP(calculator!A35,grassy,2,FALSE))","v":"  "},{"$f":"IF(ISBLANK(calculator!A35),\"\",calculator!A35)","v":""},{"$f":"IF(C34=\"\",\"\",calculator!R35)","v":""},{"$f":"IF(C34=\"\",\"\",calculator!G35)","v":""},{"$f":"IF(C34=\"\",\"\",calculator!K35)","v":""},{"$f":"IF(C34=\"\",\"\",calculator!V35)","v":""},{"$f":"IF(C34=\"\",\"\",$H$5*calculator!H35)","v":""},{"$f":"IF(C34=\"\",\"\",H34*calculator!F31)","v":""}]
[9,{"$f":"IF(ISNA(VLOOKUP(calculator!A36,grassy,2,FALSE)),\"  \",VLOOKUP(calculator!A36,grassy,2,FALSE))","v":"  "},{"$f":"IF(ISBLANK(calculator!A36),\"\",calculator!A36)","v":""},{"$f":"IF(C35=\"\",\"\",calculator!R36)","v":""},{"$f":"IF(C35=\"\",\"\",calculator!G36)","v":""},{"$f":"IF(C35=\"\",\"\",calculator!K36)","v":""},{"$f":"IF(C35=\"\",\"\",calculator!V36)","v":""},{"$f":"IF(C35=\"\",\"\",$H$5*calculator!H36)","v":""},{"$f":"IF(C35=\"\",\"\",H35*calculator!F32)","v":""}]
[null,null,null,null,null,null,null,null,"Total Cost "]
[null,null,null,null,null,null,null,null,{"$f":"SUM(I11:I35)","v":0}]
[null,"**Please be aware these are only estimated costs.  Lots of seed vary from year to year and "]
[null,"   seed company prices may vary within a given year!"]
[]
[null,"Prices in seed catalog or seed company website may be in bulk.  "]
[]
[null,"***Always get your seed price quotes on a PLS basis, since this is"]
[null," how you are planning these seedings.  "]
[]
[null,"Ordinarily, Grass seed is sold PLS and Wildflowers are sold in BULK"]
[null,"Take these hints into consideration when ordering seed! "]
[]
[null,"Seeding rates based on a PLS basis, will insure that the same amount of viable seed per acre will be planted even though quality of "]
[null,"different seed lots and total amount of material (bulk) seeded per acre may vary considerably. "]
[]
[null,"FOR EXAMPLE"]
[null,"If you know the bulk lb price, but want to find the price per PLS lb:"]
[null,"Divide the bulk lb price by the PLS percentage of that lot."]
[null,"For example, you know the price per bulk lb of a Coneflower Lot which has a PLS of 80.75%, is $70/bulk lb. "]
[null,"70 ÷ 0.8075 = 86.69"]
[null,"This means that each PLS lb of this lot costs $86.69/PLS lb."]
[]
[null,"For another seed company, for the same species is as follows:"]
[null,"Price per bulk lb of coneflower lot which has a PLS of 55%, is $65/bulk lb."]
[null,"65/.55 = $118.18"]
[null,"This means that each PLS lb of this lot costs $118.18/PLS lb"]

{"sheet":"Forbs_legumes","index":4,"n_rows":661,"n_cols":23,"rows_kept":661,"cut":false,"hidden":false,"merged":[]}
["Common name","scientific name","plant Type","pollinator ranking","Flower Time","bloom color","plant ht (ft)","soil moisture","sunlight needs","ph","Vegetative spread","seeds/ lb*","Cost (lb) ($)","drainage","other","wetland indicator","State","% of Mix",null,null,null,null,"# of seeds/sq ft @ 1 lb of seed/A"]
[null,null,null,null,null,null,null,null,null,null,null,null,null,null,null,null,null,null,null,null,null,"*any"]
["yarrow","Achillea millefolium",null,null,null,null,null,null,null,null,null,null,30,null,null,null,"any"]
["black bugbane","Actaea racemosa","P","high","early, mid","white","3-6","medium, wet","sun-part",null,"slow",500000,300,null,"blooms earlier than the others","FACW","any,",null,null,null,null,"*CT",{"$f":"L4/43560","v":11.478420569329661}]
["purple false foxglove","Agalinis purpurea","A","high","early, mid, late","purple","1-2","medium, wet","sun-part",null,null,12480000,500,"WD,MWDMSPD, PD","high bee preference","FACW","any,",null,null,null,null,"*MA",286.50137741046831]
["lavender hysoop","Agastache foeniculum","P","high","mid, late","blue-violet","3-5","dry, medium","sun-part",null,"slow",1440000,172,"WD ","honey bee, bumble bee (N)","FACU","any,mn,wv",null,"*early","*dry","*low","*ME",33.057851239669418]
["yellow giant hyssop","Agastache nepetoides","P","high","late","yellow","3-8","dry, medium","sun-part",null,null,1480000,200,null,null,"FACU","any,mn,wv",null,"*mid","*med","*med","*MI",33.976124885215796]
["purple giant hyssop","Agastache scrophulariifolia","P","very high ","mid","purple","2-6","med, wet","full ","6.5-7.0","n/a",1000000,80,"WD,MWD","attractive to bees and butterflies,birds, RARE","FACW","ny,any,pa,mn,wv",null,"*late","*wet","*high","*NH",22.956841138659321]
["leadplant","Amorpha canescens","P","high","early,mid","purple","2-3","dry, medium","sun-part",null,"slow",256000,210,"WD,MWD, SPW,PD","legume ","UPL","any,mi,mn",null,null,null,null,"*NJ",5.8769513314967856]
["common bluestar","Amsonia tabernaemontana","P","high","early","blue","2-4","medium, wet","sun-part",null,null,363000,null,"WD","exotic looking flowers","FACW","any,",null,null,null,null,"*NY",8.3333333333333339]
["purplestem angelica","Angelica atropurpurea","P","high","mid","white","1-2","medium,wet","sun",null,null,86400,200,null,"host for American painted lady caterpillar","OBL","any,","1-2% of a mix",null,null,null,"*PA",1.9834710743801653]
["indian hemp","Apocynum  cannabinum","P","medium,low "," mid","white","2-6","dry, med","full","4.5-7","high",500000,280,"WD,MWD,SPD","extensive root system, fairly aggressive","FAC","ny,any","1-2% of a mix",null,null,null,"*RI",11.478420569329661]
["red columbine","Aquilegia canadensis","P","high","early","red","1-2","dry, medium","sun-part shade",null,"slow",400000,480,"WD","deer resistant, native bees, humming birds","FACU","VA,ANY,ny","1-5% of a mix",null,null,null,"*VT",9.1827364554637274]
["common milkweed","Asclepias  syriaca","P","high ","early, mid","pink purple","3-4","dry, med","full to partial","5.6-7.5","high",68000,180,"WD,MWD","attracts monarchs; cuttings will bloom in first year, seeds may not","UPL","ny,any,pa,md,mi,mn","1-10%",null,null,null,null,1.5610651974288339]
["swamp milkweed","Asclepias incarnata","P","high ","mid","pink","2-3","wet","full to partial","5-8","slow",75000,280,"SPD,PD","good for wetlands; great for monarch; high deer resistant","OBL","VA,ANY,ny,pa,mi,mn","1-10%",null,null,null,null,1.721763085399449]
["purple milkweed","Asclepias purpurascens","P","high","mid","purple","2 -3 ","dry, medium","sun-part",null,"mod",72000,800,null,"Attracts butterflies, hummingbirds","FACU","any,",null,null,null,null,null,1.6528925619834711]
["prairie milkweed","Asclepias sullivanti",null,null,null,null,null,null,null,null,null,null,null,null,null,null,"any,mi"]
["butterfly milkweed","Asclepias tuberosa","P","high ","mid,late","orange","1-2","dry,medium","full to partial","4.8-6.8","none",70000,320,"WD,MWD","attractive to monarchs","FAC-","VA,ANY,ny,nh,pa,me,md,mi,mn","1-10%",null,null,null,null,{"$f":"L18/43560","v":1.6069788797061524}]
["whorled milkweed","Asclepias verticillata","P","high","mid","white","1-2","dry","sun-part",null,"mod, rapid",176000,700,null,null,"UPL","any,",null,null,null,null,null,{"$f":"L19/43560","v":4.0404040404040407}]
["heart-lvd aster","Aster cordifolius",null,null,null,null,null,null,null,null,null,null,null,null,null,null,"VA,ANY"]
["Canada milkvetch","Astragalus tuberosa",null,null,null,null,null,null,null,null,null,null,null,null,null,null,"mn"]
["white wild indigo","Baptisia alba","P","high","early","white/yellow","2-3","dry, medium","sun-part",null,"slow",30000,180,null,"larval food for wild indigo duskywing","FACU","any,","1-5%",null,null,null,null,{"$f":"L22/43560","v":0.68870523415977958}]
["blue wild indigo","Baptisia australis","P","medium  ","early","purple/ blue","3-5","dry, med","full","5.8-7.2","none",35000,160,"WD,MWD","native legume, great for mixes, bushy habit, good ground cover","FAC-","nh,VA,ANY,ny,pa,md","1-10%",null,null,null,null,0.80348943985307619]
["wild indigo","Baptisia tinctoria","P","medium","early, mid","yellow","1-3","dry, med","full","5.8-7","none",300000,440,null,"very low maintenance","FAC","nh,any,ny","1-5%",null,null,null,null,6.887052341597796]
["bearded beggarticks","Bidens aristosa","P","mediu","late","yellow","3","med, wet",null,"5-7",null,130000,18,"MWD,SPD",null,"FACW","ny,any","1-10%",null,null,null,null,2.9843893480257115]
["nodding beggartick","Bidens cernua","A","high","mid, late","yellow","2-3","wet","sun-part","5.1-7",null,130000,240,"MWD,SPD,PD","2-15% in a mix","OBL","VA,ANY","1-5%",null,null,null,null,2.9843893480257115]
["marsh marigold","Caltha palustris","P","high","early","yellow","1-2","med, wet","sun, part shade","6-8","slow",416000,600,null,".5-5% in a mix","OBL","any,md,mi",null,null,null,null,null,9.5500459136822773]
["bluebell bellflower","Campanula rotundifolia","P","high","mid,late","blue-violet","1-2","dry, medium","sun-part",null,null,14400000,800,null,null,"FACU","any,",null,null,null,null,null,330.57851239669424]
["American bellflower","Campanulastrum americanum","A","medium","mid, late","blue","2-6","dry, medium","sun-part",null,null,12800000,600,null,"very small seed","FAC","any,",null,null,null,null,null,293.84756657483928]
["New Jersey tea","Ceanothus americanus","Sh","high","early","blueish-white","3-4","dry, medium","sun-shade","4.6-6.5","slow",116800,700,null,null,"UPL","any,",0.01,null,null,null,null,2.6813590449954088]
["partridge pea","Chamaecrista fasciculata","P","high ","early, mid, late","yellow","1-3","dry, med","full to partial","5.5-7.5","none",65000,10,"WD,MWD","good for wildlife and erosion control; legume","FACU","VA,ANY,ny,pa,md,mn","1-10%",null,null,null,null,1.4921946740128558]
["white turtlehead","Chelone glabra","P","high","mid","White","2-4","med, wet","full-shade","5.1-6.5","slow",1560000,600,"SPD,PD","good for shady woods","OBL","VA,ANY,ny,nh,","1-2%",null,null,null,null,35.812672176308538]
["blue chicory","Cichorium intybus","P","very low ","mid, late","purple","1-4","dry, med","full to partial","6.0-7.5","none",426400,16,null,"roadsides, open fields","FACU","ny,any","1-15%",null,null,null,null,9.7887970615243347]
["black cohosh","Cimicifuga racemosa",null,null,null,null,null,null,null,null,null,null,360,null,null,null,"VA,ANY"]
["mistflower","Conoclinium coelestinum","P","high","mid,late","purple","2-3","dry,medium","sun-shade","5.5-7.5",null,2000000,80,null,"Great late season butterfly plant","FAC","any,pa","1-5%",null,null,null,null,{"$f":"L35/43560","v":45.913682277318642}]
["lanced-leaved coreopsis","Coreopsis lanceolata","P","low ","early, mid","yellow","1-3","dry, med","full","6.0-7.0","none",210000,14,"WD,MWD","can tolerate regular mowing","FACU","any,ny,mi","1-10%",null,null,null,null,{"$f":"L36/43560","v":4.8209366391184574}]
["stiff tickseed","Coreopsis palmata",null,null,null,null,null,null,null,null,null,null,null,null,null,null,"mn"]
["plains coreopsis","Coreopsis tinctoria","P","low ","early, mid, late","yellow","1-2","dry, med","full","5.2-7.8","none",3222222,16,"WD,MWD,SPD"," flowers in short period of time, may become invasive","FACU","VA,ANY,ny,md","1-15%",null,null,null,null,{"$f":"L38/43560","v":73.972038567493115}]
["tall tickseed","Coreopsis tripteris","P","high","mid, late","yellow","3-6","medium","sun-part",null,"mod",200000,300,"WD,MWD","prolific seeder","FAC","VA,ANY,ny","1-5%",null,null,null,null,4.5913682277318637]
["cosmos","Cosmos bipinnatus","A","high","mid, late","pink/white","2-4","dry,medium","sun, part sun",null,null,70000,12,"WD",null,"FAC","any","1-15%",null,null,null,null,1.6069788797061524]
["Illinios bundleflower","Desmanthus illinoensis","P","high","mid","white","2-4","dry, med","full","5-8",null,120000,30,null,null,"FACU","any,mn","1-15%",null,null,null,null,2.7548209366391183]
["showy tick trefoil","Desmodium canadense","P","medium,low","mid","pink/ purple","2-6","dry, med","full to partial","5.6-6.5","n/a",81000,80,"SPD, WD","legume, can become invasive","FAC","VA,ANY,ny,md,mn","1-10%",null,null,null,null,1.859504132231405]
["flat top white aster","Doellingeria umbellata","P","medium,low","late","white","3-4","med, wet","full  ","5.6-7.5","n/a",1200000,200,"WD,MWDMSPD, PD","host to pearl crescent, and silvery checkerspot","FACW","ny,any,md","1-5%",null,null,null,null,27.548209366391184]
["pale purple coneflower","Echinacea pallida","P","high","mid","purple","2-4","dry, medium","sun, part shade","6.5-7.2","slow",83200,72,"WD,MWD","honey beesm native bees (n); goldfinches","UPL","any","1-15%",null,null,null,null,1.9100091827364554]
["purple coneflower","Echinacea purpurea","P","high ","mid, late","purple",".5-2","dry, med","full to partial","6.5-7.2","mod",115000,28,"WD-MWD","easy to grow","FAC","ny,any,nh,me,mi,mn","1-15%",null,null,null,null,2.6400367309458219]
["rattlesnake master","Eryngium yuccifolium","P","high","mid, late","white","3","medium","sun","6.5-7.5",null,170000,120,"WD,MWD,SPD,PD",null,"FAC","any,mi","1-5%",null,null,null,null,3.9026629935720845]
["spotted joe pye weed","Eupatoriadelphus maculatus","P","high ","mid","pink-purple","2-7","med, wet","full to partial","5.5-7","slow",1500000,240,"SPD,PD","attracts butterflies","FACW","VA,ANY,ny,md,mi,mn","1-10%",null,null,null,null,34.435261707988978]
["Joe-pyeweed","Eupatorium fistulosum",null,null,null,null,null,null,null,null,null,null,228,null,null,null,"any,pa"]
["boneset","Eupatorium perfoliatum","P","high ","mid, late","white","3-5"," med, wet","full to partial","6.1-7.8","n/a",2880000,220,"SPD,PD","from seed, flowers in 2nd to 3rd year. may attract pests","FACW","VA,ANY,ny,nh,pa,mi,mn","1-10%",null,null,null,null,{"$f":"L49/43560","v":66.115702479338836}]
["sweetscented joepyeweed","Eupatorium purpureum","P","high","mid summer-fall","pink-purple","2-6","dry, medium","sun-shade",null,"slow",768000,240,null,"butterflies and other insects","FAC","any","1-5%",null,null,null,null,{"$f":"L50/43560","v":17.630853994490359}]
["bigleaf aster","Eurybia macrophylla","P","medium,low"," late","purple","2-5","dry","full-shade","4.9-6.9","mod",800000,220,null,"provides wildlife habitat, can tolerate some shade","UPL","any","1-5%",null,null,null,null,{"$f":"L51/43560","v":18.365472910927455}]
["grass-leaved goldenrod","Euthamia graminifolia","P","low "," late","yellow","3-6","dry, med","full","n/a","fast",5600000,400,"SPD, MWD","food and cover for wildlife","FAC","ny,any","1-2%",null,null,null,null,{"$f":"L52/43560","v":128.55831037649219}]
["Buckwheat","Fagopyrum esculentum",null,null,null,null,null,null,null,null,null,null,null,null,null,null,"any"]
["blanketflower","Gaillardia aristata","P","high","ealy,mid,late","orange","1-1.5","dry, medium","full ","5.5-7.9",null,200000,32,null,"honey bees, native bees (n/p)","FACU","any","1-15%",null,null,null,null,{"$f":"L54/43560","v":4.5913682277318637}]
["bottle gentian","Gentiana andrewsii",null,null,null,null,null,null,null,null,null,null,null,null,null,null,"any,mn"]
["bottle gentian","Gentiana clausa","P","high","late","purple","1","dry","full-part","5.8-7.2",null,2500000,400,"WD,MWD,SPD",null,"FACW","any","1-2%",null,null,null,null,{"$f":"L56/43560","v":57.392102846648299}]
["cream gentian","Gentiana flava",null,null,null,null,null,null,null,null,null,null,null,null,null,null,"mn"]
["spotted geranium","Geranium maculatum","P","high","early","purple",2,"dry, medium","sun, part sun, shade","5.5-8.5",null,800000,800,null,null,"FACU","nh,any,me",null,null,null,null,null,{"$f":"L58/43560","v":18.365472910927455}]
["rough avens","Geum laciniatum","P","high","early","white","3"," med","sun-part","5-7",null,400000,160,"WD,MWD",null,"FACW","any",null,null,null,null,null,{"$f":"L59/43560","v":9.1827364554637274}]
["common sneezeweed","Helenium autumnale","P","high ","mid, late","yellow","2-5","med, wet","full","4.0-7.5","none",2000000,80,"WD,MWD,SPD","attracts butterflies, flowers late","FACW","VA,ANY,ny,nh,,me,mn","1-5%",null,null,null,null,{"$f":"L60/43560","v":45.913682277318642}]
["narrow-lvd sunflower","Helianthus angustufolius",null,null,null,null,null,null,null,null,null,null,60,null,null,null,"VA,ANY"]
["ten-petaled sunflower","Helianthus decapetalus",null,null,null,null,null,null,null,null,null,null,null,null,null,null,"VA,ANY"]
["giant sunflower","Helianthus giganteus","P","medium ","mid,late","yellow","3-10","dry, med","full","6.1-7.8","none",160000,300,"WD,MWD","large plant, small flowers","FACW","any,nh,ny,mn","1-2%",null,null,null,null,{"$f":"L63/43560","v":3.6730945821854912}]
["Maximilian sunflower","Helianthus maximiliani","P","high","late","yellow","6-9","dry, med","full","6-8",null,190000,36,"WD,MWD",null,"UPL","mi,any","3-15%",null,null,null,null,{"$f":"L64/43560","v":4.3617998163452709}]
["ashy sunflower","Helianthus mollis","P","medium ","mid, late","yellow","2-6","dry","full","5.7-8.0","high",125000,180,null,"covered with hairs","UPL","any",null,null,null,null,null,{"$f":"L65/43560","v":2.8696051423324151}]
["oxeye sunflower","Heliopsis helianthoides","P","low ","mid","yellow","2-5","dry, med","full to partial","6.1-7.8","n/a",103900,48,"MWD, ED",null,"FAC","VA,ANY,ny,md,mi,mn","1-10%",null,null,null,null,{"$f":"L66/43560","v":2.3852157943067036}]
["Eastern rose mallow","Hibiscus moscheutos",null,null,null,null,null,null,null,null,null,null,180,null,null,null,"VA,ANY"]
["Virginia waterleaf","Hydrophyllum virginianum",null,null,null,null,null,null,null,null,null,null,null,null,null,null,"nh,any"]
["St Johnswort","Hypericum perforatum","P","low","mid, late","yellow","1-3","dry","partial","5.1-7.5","slow",1800000,80,"WD,MWD,SPD",null,"UPL","any,pa","1-5%",null,null,null,null,{"$f":"L69/43560","v":41.32231404958678}]
["roundheaded bushclover","Lespedeza capitata","P","very low","mid","white","2-4","dry, med","full","5.7-8.2","none",159000,180,"MWD, ED","provides food for birds and small wildlife","FACU","VA,ANY,ny,mi,mn","1-5%",null,null,null,null,{"$f":"L70/43560","v":3.6501377410468319}]
["rough blazing star","Liatris aspera","P","high","mid","purple","3-5","dry, med","full","6.6-7.5","slow",256000,400,"WD,MWD","scarify seed helps, shortest and last to bloom of liatris","FAC","any,mi,ny,mn","1-5%",null,null,null,null,{"$f":"L71/43560","v":5.8769513314967856}]
["dotted blazing star","Liatris punctata",null,null,null,null,null,null,null,null,null,null,null,null,null,null,"mn"]
["prairie blazing star","Liatris pycnostachya","P","high","mid, late","purple","4","med","full","6.5-7.5","slow",176000,225,null,"honey bees, bumble bees (n/p)","FAC","any,mn","1-10%",null,null,null,null,{"$f":"L73/43560","v":4.0404040404040407}]
["dense blazing star","Liatris spicata","P","high ","early,mid","purple","3-4","med, wet","full to partial","5.6-7.5","slow",125000,180,"WD,MWD","good for rain gardens","FACW","VA,ANY,pa,ny","1-10%",null,null,null,null,2.8696051423324151]
["perennial blue flax","Linum perenne","P","high ","early, late","blue","2-3","dry, med","full to partial","6.1-7.8","slow",295000,20,null,"not native and short lived","FAC","VA,ANY,pa","1-15%",null,null,null,null,6.7722681359044996]
["cardinal flower","Lobelia  cardinalis","P","high ","mid, late","red","1-6"," med, wet","full to partial","5.8-7.8","none",7320000,560,"SPD,PD","provides nectar for bees and hummingbirds, butterflies","OBL","VA,ANY,ny,pa,mi","1-2%",null,null,null,null,168.04407713498622]
["great blue lobelia","Lobelia siphilitica","P","very high","mid, late","purple","2-5"," med, wet","full to partial","6.0-7.5","n/a",6400000,280,"SPD,PD",null,"FACW","VA,ANY,ny,pa,mi,mn","1-2%",null,null,null,null,146.92378328741964]
["palespike lobelia","Lobelia spicata","P","high","early","purple","2-3","dry, medium","sun-part shade",null,null,14400000,24,"WD","humming birds","FAC","any,nh",null,null,null,null,null,330.57851239669424]
["lupine","Lupinus perennis","P","high ","early","blue","1-2","dry, med","full to partial","4.6-7.2","none",18800,200,"MWD, ED","provides food and habitat for butterflies, not for restoration","FACU","md,nh,any,pa,mi","1-20%",null,null,null,null,0.43158861340679522]
["bigleaf lupine","Lupinus polyphyllus","P","high","early,mid","purple","2-3","dry","full-part",null,null,75000,24,null,null,"FACU","any","1-10%",null,null,null,null,1.721763085399449]
["alfalfa","Medicago sativa",null,null,null,null,null,null,null,null,null,null,null,null,null,null,"any"]
["yellow sweet clover","Melilotus officinalis",null,null,null,null,null,null,null,null,null,null,2.25,null,null,null,"any,pa"]
["wild mint","Mentha arvensis",null,null,null,null,null,null,null,null,null,null,null,null,null,null,"any,me"]
["Alleghany monkey flower","Mimulus  ringens","P","medium,low"," mid","light purple","1-3","medium, wet","full to partial","5.6-7.5","n/a",36800000,180,"SPD,PD","provides cover for wildlife","OBL","VA,ANY,pa","1-5%",null,null,null,null,{"$f":"L84/43560","v":844.81175390266299}]
["bee balm","Monarda didyma","P","high","mid","red","2-4","wet, medium","sun-part",null,"mod",800000,400,"WD,MWD, SPD ","Attracts hummingbirds and great nectar source for butterflies","FAC","VA,ANY,pa",null,null,null,null,null,18.365472910927455]
["wild bergamot","Monarda fistulosa","P","very high ","early, mid","purple/ dark pink","2-5","dry, med","full to partial","6-8","mod",1200000,240,"WD,MWD","provides nectar for bees and hummingbirds, butterflies","FACU","VA,ANY,ny,nh,me,mi,mn","1-3%",null,null,null,null,27.548209366391184]
["purple bergamot","Monarda media","P","very high ","early","purple","2-4","med","full to partial","6.0-7.8","mod",1120000,240,null,"attracts bees and butterflies","FAC","any,ny,md","1-3%",null,null,null,null,25.711662075298438]
["spotted beebalm","Monarda punctata","BI","high ","early, mid","pink/ white",".5-3","dry","full","6.8-7.2","mod",1440000,180,null,"sensitive to overwatering","UPL","any,ny,nh,pa","1-5%",null,null,null,null,33.057851239669418]
["evening primrose","Oenothera biennis","BI","medium","mid,late","yellow","4-5","dry, med","full","6.1-7.8","none",1376000,32,null,"may become weedy or invasive","FACU","any,ny,mn","1-2%",null,null,null,null,31.588613406795226]
["Riddell's Goldenrod","Oligoneuron riddellii","P","high"," late","yellow","2-4","wet","full","7.0-8.0","some",1424000,200,null,"listed as species at risk, Not Native to NY","OBL","any","1-5%",null,null,null,null,32.690541781450875]
["stiff goldenrod","Oligoneuron rigidum","P","high ","late","yellow","4","dry, med","full-part","5.5-7.5","rapid",1000000,220,null,null,"FACU","any,md,mi","1-8%",null,null,null,null,22.956841138659321]
["eastern grey beardtongue","Penstemon canescens","P","high","early","purple","1-2","dry","sun-part",null,null,1000000,400,"WD","early season color","FAC","any","1-5%",null,null,null,null,22.956841138659321]
["tall white beard tongue ","Penstemon digitalis","P","high ","early","white","2-5","dry, med","full to partial","5.5-7","mod",2000000,108,"WD,MWD","a durable early plant","FAC","nh,any,ny,pa,me,md","1-5%",null,null,null,null,45.913682277318642]
["showy penstemon","Penstemon grandifloris",null,null,null,null,null,null,null,null,null,null,null,null,null,null,"mn"]
["hairy beardtongue","Penstemon hirsutus","P","high ","early,mid","Pale violet","2-3","dry, med","full-shade","6.0-7.5","none",3250000,240,"WD,MWD",null,"FACU","mi,nh,ny,any","1-5%",null,null,null,null,{"$f":"L95/43560","v":74.609733700642792}]
["eastern smooth beardtongue","Penstemon laevigatus","P","high","early","purple/white","2-4","dry","full-shade",null,null,1500000,240,"WD,MWD","meadows woods roadsides","FACU","VA,ANY","1-6%",null,null,null,null,{"$f":"L96/43560","v":34.435261707988978}]
["purple praire clover","Petalostemon purpurum"]
["Phacelia","Phacelia tanaecitifolia",null,null,null,null,null,null,null,null,null,null,null,null,null,null,"any"]
["fall phlox","Phlox paniculata",null,null,null,null,null,null,null,null,null,null,null,null,null,null,"VA,ANY"]
["obedient plant","Physostegia virginiana","P","high","late","pink/white","2 - 4"," medium, wet","Sun/part shade ",null,"rapid",176000,640,null,"deer resistant, Attracts fall migrating hummingbirds","FACW","any,nh","1-2%",null,null,null,null,{"$f":"L100/43560","v":4.0404040404040407}]
["hoary mountain mint","Pycnanthemum incanum",null,null,null,null,null,null,null,null,null,null,null,null,null,null,"VA,ANY"]
["narrow-lvd mountain mint","Pycnanthemum tenuifolium",null,null,null,null,null,null,null,null,null,null,null,null,null,null,"VA,ANY"]
["Virginia mountain mint","Pycnanthemum virginianum","P","high ","mid, late","white","2-3","med, wet","full to partial","5.0-7.5","slow",3840000,480,"WD,MWD","very fragrant","FACW","VA,ANY,ny,nh,pa,me,mn","1-2%",null,null,null,null,{"$f":"L103/43560","v":88.154269972451786}]
["gray headed coneflower","Ratibida pinnata","P","medium","mid","yellow","3-5","dry, med","full to partial","5.6-6.8","none",550000,60,"WD,MWD",null,"FAC","any,ny,mi,mn","1-10%",null,null,null,null,12.626262626262626]
["orange coneflower","Rudbeckia fulgida","P","high","mid, late","yellow ","2 - 4   ","medium,wet","sun, part sun",null,null,496000,248,null,"Drought tolerant, birds eat seeds ","OBL","any","1-5%",null,null,null,null,11.386593204775023]
["black-eyed susan","Rudbeckia hirta","BI","low ","early, mid, late","yellow/ orange","2-3","dry, med","full to partial","6-7","none",1500000,24,"SPD, WD","food an cover for birds","FACU","VA,ANY,ny,md,mi,mn","1-5%",null,null,null,null,34.435261707988978]
["cutleaf coneflower","Rudbeckia lacinata","P","high","mid","yellow","3-6","mdium, medium","sun-part",null,"slow",240000,200,null,"honey bees, native bees (n/p), goldfinches, deer resistanat","FACU","any,me",null,null,null,null,null,5.5096418732782366]
["browneyed Susan","Rudbeckia triloba","P","high","late"," yellow","1-3","dry,medium","sun-part",null,null,536000,80,"WD.MWD","native bees, bumble bees (n), goldfinches","FACU","any","1-5%",null,null,null,null,12.304866850321396]
["wild senna","Senna hebecarpa","P","medium ","mid","yellow","4-6","dry, med","full to partial","6.5-7.5","n/a",22680,18,null,"short flowering legumes","FACW","ny,any,md","1-10%",null,null,null,null,0.52066115702479343]
["blue-eyed grass","Sisyrinchium angustifolium","P","high","early","blue","1","dry,medium","sun-part",null,null,480000,200,"WD,SPW,PD",null,"FAC","any",null,null,null,null,null,11.019283746556473]
["bluestem goldenrod","Solidago caesia","P","high"," late","yellow","1-3","dry, med","full to partial","5.5-7","slow",4000000,450,"WD,MWD","wood edges","FACU","ny,any","1-2%",null,null,null,null,91.827364554637285]
["zigzag goldenrod","Solidago flexicaulis","P","high","late","yellow","1-4","dry, medium","sun-shade",null,null,1344000,900,null,"moderate spreader","FACU","any",null,null,null,null,null,30.853994490358126]
["early goldenrod","Solidago juncea","P","high ","mid, late","yellow","3-6","dry","full to partial","5.0-7.0","n/a",2000000,220,null,"first goldenrod of the season to bloom","UPL","ny,any,nh","1-5%",null,null,null,null,45.913682277318642]
["gray goldenrod","Solidago nemoralis","P","very high "," late","yellow",".5-2.5","dry","full","6.5-7.5","rapid",1008000,260,"WD,MWD","survives in low fertility soil, provides nectar for butterflies","UPL","ny,any,md","1-5%",null,null,null,null,23.140495867768596]
["rough leaved goldenrod","Solidago patula","P","high"," late","yellow","4-5","wet","full-partial","4.5-7","rapid",900000,400,"SPD,PD",null,"OBL","ny,any","1-5%",null,null,null,null,20.66115702479339]
["wrinkleleaf goldenrod","Solidago rugosa","P","high","late","yellow","2-6","dry,medium","sun-part","5-7.5","mod",1480000,320,"WD,MWD","\"fireworks\" will not spread","FAC","VA,ANY,ny","1-5%",null,null,null,null,33.976124885215796]
["showy goldenrod","Solidago speciosa","P","high"," late","yellow","1-5","dry","full to partial","5.1-7.5","n/a",1600000,160,"WD,MWD","very attractive to butterflies, bees, ants, beetles","UPL","VA,ANY,ny,nh,mn,","1-8%",null,null,null,null,36.73094582185491]
["common blue wood aster","Symphyotrichum cordifolium","P","high","late","blue-purple","2-3","dry, medium","part sun, shade","5.7-7.5","mod",2000000,260,"MWD,WD","abundant seed producer,in woodland clearings","UPL","any","1-5%",null,null,null,null,45.913682277318642]
["panicled aster","Aster simplex",null,null,null,null,null,null,null,null,null,null,null,null,null,null,"mn"]
["smooth blue aster","Symphyotrichum laeve","P","high"," late","blue/ purple","1-3","dry, med","full","5.8-7.8","mod",1000000,220,"MWD,WD","fiborous root system","FACU","VA,ANY,ny,nh,md,mi,mn","1-8%",null,null,null,null,{"$f":"L120/43560","v":22.956841138659321}]
["white panicle aster","Symphyotrichum lanceolatum","P","high","mid,late","white","2-5","medium","sun-part",null,"mid",2256000,null,"WD","1-5% in a mix","FACW","any",null,null,null,null,null,51.790633608815426]
["calico aster","Symphyotrichum lateriflorum","P","high"," late","white/ changng","1-5","dry, med","full-shade","6.1-6.5","some",3200000,260,null,"found in forested areas, horizontal branches","FAC","any,ny,nh,md",null,null,null,null,null,73.461891643709819]
["New England aster","Symphyotrichum novae-angliae","P","very high"," late","purple","2-6","med, wet","full to partial","5.6-7.5","n/a",1120000,280,"WD, MWD","provides food and cover for wildlife and butterflies","FACW","VA,ANY,ny,pa,me,md,mi,mn","2-8%",null,null,null,null,25.711662075298438]
["New York aster","Symphyotrichum novi-belgii","P","high"," late","purple","4-5","med, wet","full ","5.5-7","mod",800000,240,"SPD,PD,MWD","prone to mildew","FACW","VA,ANY,ny,nh,pa,me","1-5%",null,null,null,null,18.365472910927455]
["aromatic aster","Symphyotrichum oblongifolium","P","high","late","violet","2-3","dry, medium","sun",null,null,816000,220,"WD","1-5% in a mix","UPL","any,md","1-5%",null,null,null,null,18.732782369146005]
["zigzag aster","Symphyotrichum prenanthoides","P","high"," late","pink/ purple","2-4","dry, med","partial to shade","5.5-7.2","mod",700000,180,"WD,MWD,SPD","provides nectar for butterflies","FAC","any,md","1-5%",null,null,null,null,16.069788797061523]
["purplestem aster","Symphyotrichum puniceum","P","high","late","violet","3-6","medium, wet","sun","4.5-7.5","slow",1216000,280,"WD,MWD, SPW,PD","nectar for butterflies","OBL","any","1-5%",null,null,null,null,27.915518824609734]
["Silky aster",null,null,null,null,null,null,null,null,null,null,null,null,null,null,null,"mn"]
["Ohio spiderwort","Tradescantia ohiensis","P","high","early, mid","purple","1-3","dry, med","full to partial","6.6-7.5","n/a",128000,160,"WD,MWD, SPW,PD","self seeds, can become invasive","FACU","ny,any,md",null,null,null,null,null,{"$f":"L129/43560","v":2.9384756657483928}]
["zigzag spiderwort","Tradescantia subaspera","P","high","mid","purple","2-3","med, wet","partial   ","5-6-7.8","n/a",130000,64,"WD,MWD, SPW,PD","bloom period fairly long. Pollinated by bees, sytphid flies","FACW","ny,any",null,null,null,null,null,{"$f":"L130/43560","v":2.9843893480257115}]
["Virginia spiderwort","Tradescantia virginiana",null,null,null,null,null,null,null,null,null,null,null,null,null,null,"pa,nh,any,ny"]
["alsike clover","Trifolium hybridum","P","high","early,late","pink-white","2-4","dry, med","full","5.6-7.5","none",680000,3,"WD,MWD, SPW,PD","introduced","FACU","ny,any,pa,md",0.25,null,null,null,null,{"$f":"L132/43560","v":15.610651974288338}]
["crimson clover","Trifolium incarnatum",null,null,null,null,null,null,null,null,null,null,2.5,null,null,null,"pa,any"]
["blue vervain","Verbena hastata","P","medium ","early, mid","purple","2-5"," med, wet","full to partial","5.6-7.5","n/a",1544000,60,"SPD, PD","easily seeded","FACW","VA,ANY,ny,pa,mi","1-10%",null,null,null,null,{"$f":"L134/43560","v":35.445362718089989}]
["hoary vervain","Verbena stricta","P","high","mid","purple","4-6","dry, med","full","5.6-7.5","slow",1000000,80,null,"does not compete with vigorous grasses","FACU","ny,any","1-10%",null,null,null,null,22.956841138659321]
["white vervain","Verbena urticifolia","P","medium    ","early","white","3-5","dry, med","full to partial","6.6-7.5","n/a",480000,120,"SPD, WD",null,"FAC","ny,any","1-5%",null,null,null,null,11.019283746556473]
["wingstem","Verbesina alternifolia","P","medium,low","mid, late","yellow","3-8"," med, wet","full to partial","n/a","n/a",180000,180,"SPD, PD","threatened in NYS","FACW","ny,any,pa","1-5%",null,null,null,null,4.1322314049586772]
["NY ironweed","Vernonia noveboracensis","P","high","mid","purple","4-6"," med, wet","full to partial","5.1-7.5","none",300000,220,null,"deer and rabbit resistance","FACW","VA,ANY,ny","1-5%",null,null,null,null,6.887052341597796]
["culver's root","Veronicastrum virginicum","P","high ","early, mid","white","2-6","dry, med","full to partial","6.6-7.8","n/a",12400000,640,null,"attracts butterflies and bees","FAC","ny,any,nh,mn","1-2%",null,null,null,null,284.66483011937555]
["meadow zizia","Zizia aptera","P","high","early","yellow","1-3","dry","sun-part",null,null,176000,230,null,"endangered inCT, great for warerfowl","FACU","any,",null,null,null,null,null,4.0404040404040407]
["golden alexanders","Zizia aurea","P","high","early","yellow","1-2","dry, med","full to partial","6.1-7.8","n/a",176000,180,"SPD, WD","one of the earliest blooming natives","FAC","ny,any,md,mn","1-5%",null,null,null,null,4.0404040404040407]
[null,null,null,null,null,null,null,null,null,null,null,null,null,null,null,null,null,null,null,null,null,null,{"$f":"L142/43560","v":0}]
[null,null,null,null,null,null,null,null,null,null,null,null,null,null,null,null,null,null,null,null,null,null,0]
[null,null,null,null,null,null,null,null,null,null,null,null,null,null,null,null,null,null,null,null,null,null,0]
[null,null,null,null,null,null,null,null,null,null,null,null,null,null,null,null,null,null,null,null,null,null,0]
[null,null,null,null,null,null,null,null,null,null,null,null,null,null,null,null,null,null,null,null,null,null,0]
[null,null,null,null,null,null,null,null,null,null,null,null,null,null,null,null,null,null,null,null,null,null,0]
[null,null,null,null,null,null,null,null,null,null,null,null,null,null,null,null,null,null,null,null,null,null,0]
[null,null,null,null,null,null,null,null,null,null,null,null,null,null,null,null,null,null,null,null,null,null,0]
[null,null,null,null,null,null,null,null,null,null,null,null,null,null,null,null,null,null,null,null,null,null,0]
[null,null,null,null,null,null,null,null,null,null,null,null,null,null,null,null,null,null,null,null,null,null,0]
[null,null,null,null,null,null,null,null,null,null,null,null,null,null,null,null,null,null,null,null,null,null,0]
[null,null,null,null,null,null,null,null,null,null,null,null,null,null,null,null,null,null,null,null,null,null,0]
[null,null,null,null,null,null,null,null,null,null,null,null,null,null,null,null,null,null,null,null,null,null,0]
[null,null,null,null,null,null,null,null,null,null,null,null,null,null,null,null,null,null,null,null,null,null,0]
[null,null,null,null,null,null,null,null,null,null,null,null,null,null,null,null,null,null,null,null,null,null,0]
[null,null,null,null,null,null,null,null,null,null,null,null,null,null,null,null,null,null,null,null,null,null,0]
[null,null,null,null,null,null,null,null,null,null,null,null,null,null,null,null,null,null,null,null,null,null,0]
[null,null,null,null,null,null,null,null,null,null,null,null,null,null,null,null,null,null,null,null,null,null,0]
[null,null,null,null,null,null,null,null,null,null,null,null,null,null,null,null,null,null,null,null,null,null,{"$f":"L160/43560","v":0}]
[null,null,null,null,null,null,null,null,null,null,null,null,null,null,null,null,null,null,null,null,null,null,0]
[null,null,null,null,null,null,null,null,null,null,null,null,null,null,null,null,null,null,null,null,null,null,0]
[null,null,null,null,null,null,null,null,null,null,null,null,null,null,null,null,null,null,null,null,null,null,0]
[null,null,null,null,null,null,null,null,null,null,null,null,null,null,null,null,null,null,null,null,null,null,0]
[null,null,null,null,null,null,null,null,null,null,null,null,null,null,null,null,null,null,null,null,null,null,0]
[null,null,null,null,null,null,null,null,null,null,null,null,null,null,null,null,null,null,null,null,null,null,0]
[null,null,null,null,null,null,null,null,null,null,null,null,null,null,null,null,null,null,null,null,null,null,0]
[null,null,null,null,null,null,null,null,null,null,null,null,null,null,null,null,null,null,null,null,null,null,0]
[null,null,null,null,null,null,null,null,null,null,null,null,null,null,null,null,null,null,null,null,null,null,0]
[null,null,null,null,null,null,null,null,null,null,null,null,null,null,null,null,null,null,null,null,null,null,0]
[null,null,null,null,null,null,null,null,null,null,null,null,null,null,null,null,null,null,null,null,null,null,0]
[null,null,null,null,null,null,null,null,null,null,null,null,null,null,null,null,null,null,null,null,null,null,0]
[null,null,null,null,null,null,null,null,null,null,null,null,null,null,null,null,null,null,null,null,null,null,0]
[null,null,null,null,null,null,null,null,null,null,null,null,null,null,null,null,null,null,null,null,null,null,0]
[null,null,null,null,null,null,null,null,null,null,null,null,null,null,null,null,null,null,null,null,null,null,0]
[null,null,null,null,null,null,null,null,null,null,null,null,null,null,null,null,null,null,null,null,null,null,0]
[null,null,null,null,null,null,null,null,null,null,null,null,null,null,null,null,null,null,null,null,null,null,0]
[null,null,null,null,null,null,null,null,null,null,null,null,null,null,null,null,null,null,null,null,null,null,0]
[null,null,null,null,null,null,null,null,null,null,null,null,null,null,null,null,null,null,null,null,null,null,0]
[null,null,null,null,null,null,null,null,null,null,null,null,null,null,null,null,null,null,null,null,null,null,0]
[null,null,null,null,null,null,null,null,null,null,null,null,null,null,null,null,null,null,null,null,null,null,0]
[null,null,null,null,null,null,null,null,null,null,null,null,null,null,null,null,null,null,null,null,null,null,0]
[null,null,null,null,null,null,null,null,null,null,null,null,null,null,null,null,null,null,null,null,null,null,0]
[null,null,null,null,null,null,null,null,null,null,null,null,null,null,null,null,null,null,null,null,null,null,0]
[null,null,null,null,null,null,null,null,null,null,null,null,null,null,null,null,null,null,null,null,null,null,0]
[null,null,null,null,null,null,null,null,null,null,null,null,null,null,null,null,null,null,null,null,null,null,0]
[null,null,null,null,null,null,null,null,null,null,null,null,null,null,null,null,null,null,null,null,null,null,0]
[null,null,null,null,null,null,null,null,null,null,null,null,null,null,null,null,null,null,null,null,null,null,0]
[null,null,null,null,null,null,null,null,null,null,null,null,null,null,null,null,null,null,null,null,null,null,0]
[null,null,null,null,null,null,null,null,null,null,null,null,null,null,null,null,null,null,null,null,null,null,0]
[null,null,null,null,null,null,null,null,null,null,null,null,null,null,null,null,null,null,null,null,null,null,0]
[null,null,null,null,null,null,null,null,null,null,null,null,null,null,null,null,null,null,null,null,null,null,0]
[null,null,null,null,null,null,null,null,null,null,null,null,null,null,null,null,null,null,null,null,null,null,0]
[null,null,null,null,null,null,null,null,null,null,null,null,null,null,null,null,null,null,null,null,null,null,0]
[null,null,null,null,null,null,null,null,null,null,null,null,null,null,null,null,null,null,null,null,null,null,0]
[null,null,null,null,null,null,null,null,null,null,null,null,null,null,null,null,null,null,null,null,null,null,0]
[null,null,null,null,null,null,null,null,null,null,null,null,null,null,null,null,null,null,null,null,null,null,0]
[null,null,null,null,null,null,null,null,null,null,null,null,null,null,null,null,null,null,null,null,null,null,0]
[null,null,null,null,null,null,null,null,null,null,null,null,null,null,null,null,null,null,null,null,null,null,0]
[null,null,null,null,null,null,null,null,null,null,null,null,null,null,null,null,null,null,null,null,null,null,0]
[null,null,null,null,null,null,null,null,null,null,null,null,null,null,null,null,null,null,null,null,null,null,0]
[null,null,null,null,null,null,null,null,null,null,null,null,null,null,null,null,null,null,null,null,null,null,0]
[null,null,null,null,null,null,null,null,null,null,null,null,null,null,null,null,null,null,null,null,null,null,0]
[null,null,null,null,null,null,null,null,null,null,null,null,null,null,null,null,null,null,null,null,null,null,0]
[null,null,null,null,null,null,null,null,null,null,null,null,null,null,null,null,null,null,null,null,null,null,0]
[null,null,null,null,null,null,null,null,null,null,null,null,null,null,null,null,null,null,null,null,null,null,0]
[null,null,null,null,null,null,null,null,null,null,null,null,null,null,null,null,null,null,null,null,null,null,0]
[null,null,null,null,null,null,null,null,null,null,null,null,null,null,null,null,null,null,null,null,null,null,0]
[null,null,null,null,null,null,null,null,null,null,null,null,null,null,null,null,null,null,null,null,null,null,0]
[null,null,null,null,null,null,null,null,null,null,null,null,null,null,null,null,null,null,null,null,null,null,0]
[null,null,null,null,null,null,null,null,null,null,null,null,null,null,null,null,null,null,null,null,null,null,0]
[null,null,null,null,null,null,null,null,null,null,null,null,null,null,null,null,null,null,null,null,null,null,0]
[null,null,null,null,null,null,null,null,null,null,null,null,null,null,null,null,null,null,null,null,null,null,0]
[null,null,null,null,null,null,null,null,null,null,null,null,null,null,null,null,null,null,null,null,null,null,0]
[null,null,null,null,null,null,null,null,null,null,null,null,null,null,null,null,null,null,null,null,null,null,0]
[null,null,null,null,null,null,null,null,null,null,null,null,null,null,null,null,null,null,null,null,null,null,0]
[null,null,null,null,null,null,null,null,null,null,null,null,null,null,null,null,null,null,null,null,null,null,0]
[null,null,null,null,null,null,null,null,null,null,null,null,null,null,null,null,null,null,null,null,null,null,0]
[null,null,null,null,null,null,null,null,null,null,null,null,null,null,null,null,null,null,null,null,null,null,0]
[null,null,null,null,null,null,null,null,null,null,null,null,null,null,null,null,null,null,null,null,null,null,0]
[null,null,null,null,null,null,null,null,null,null,null,null,null,null,null,null,null,null,null,null,null,null,0]
[null,null,null,null,null,null,null,null,null,null,null,null,null,null,null,null,null,null,null,null,null,null,0]
[null,null,null,null,null,null,null,null,null,null,null,null,null,null,null,null,null,null,null,null,null,null,0]
[null,null,null,null,null,null,null,null,null,null,null,null,null,null,null,null,null,null,null,null,null,null,{"$f":"L224/43560","v":0}]
[null,null,null,null,null,null,null,null,null,null,null,null,null,null,null,null,null,null,null,null,null,null,0]
["AG-Agrecol (PLS)",null,null,null,null,null,null,null,null,null,null,null,null,null,null,null,null,null,null,null,null,null,0]
["AGN- Amanda's Garden",null,null,null,null,null,null,null,null,null,null,null,null,null,null,null,null,null,null,null,null,null,0]
["AM-American Meadows",null,null,null,null,null,null,null,null,null,null,null,null,null,null,null,null,null,null,null,null,null,0]
["ANP- American Native Plants",null,null,null,null,null,null,null,null,null,null,null,null,null,null,null,null,null,null,null,null,null,0]
["BH-Bowman's Hill",null,null,null,null,null,null,null,null,null,null,null,null,null,null,null,null,null,null,null,null,null,0]
["CNN-Cheasepeke Native Nursery",null,null,null,null,null,null,null,null,null,null,null,null,null,null,null,null,null,null,null,null,null,0]
["EC-Environmental Concern",null,null,null,null,null,null,null,null,null,null,null,null,null,null,null,null,null,null,null,null,null,0]
["ED-Edge of the Woods Nursey",null,null,null,null,null,null,null,null,null,null,null,null,null,null,null,null,null,null,null,null,null,0]
["E-Ernst Conservation Seeds",null,null,null,null,null,null,null,null,null,null,null,null,null,null,null,null,null,null,null,null,null,0]
["EF-Earth First Native Plant Nursery",null,null,null,null,null,null,null,null,null,null,null,null,null,null,null,null,null,null,null,null,null,0]
["EG-Enchanters Garden",null,null,null,null,null,null,null,null,null,null,null,null,null,null,null,null,null,null,null,null,null,0]
["ET-Earth Tones",null,null,null,null,null,null,null,null,null,null,null,null,null,null,null,null,null,null,null,null,null,0]
["EVT-Envirotech Consultants",null,null,null,null,null,null,null,null,null,null,null,null,null,null,null,null,null,null,null,null,null,0]
["FC-Fiddlehead Creek",null,null,null,null,null,null,null,null,null,null,null,null,null,null,null,null,null,null,null,null,null,0]
["JF-JF New",null,null,null,null,null,null,null,null,null,null,null,null,null,null,null,null,null,null,null,null,null,0]
["MW-Meadowwood",null,null,null,null,null,null,null,null,null,null,null,null,null,null,null,null,null,null,null,null,null,0]
["NE- New England Wetland Plants",null,null,null,null,null,null,null,null,null,null,null,null,null,null,null,null,null,null,null,null,null,0]
["OPN-Ohio Prairie Nursery",null,null,null,null,null,null,null,null,null,null,null,null,null,null,null,null,null,null,null,null,null,0]
["PMN-Prairie Moon Nursery",null,null,null,null,null,null,null,null,null,null,null,null,null,null,null,null,null,null,null,null,null,0]
["PN-Prairie Nursery",null,null,null,null,null,null,null,null,null,null,null,null,null,null,null,null,null,null,null,null,null,0]
["RB-Redbud Nursery",null,null,null,null,null,null,null,null,null,null,null,null,null,null,null,null,null,null,null,null,null,0]
["SS-Shooting Star Native Seeds",null,null,null,null,null,null,null,null,null,null,null,null,null,null,null,null,null,null,null,null,null,0]
["WFN- Wildflower Nursery",null,null,null,null,null,null,null,null,null,null,null,null,null,null,null,null,null,null,null,null,null,0]
["WSC-Wetlands Supply Company",null,null,null,null,null,null,null,null,null,null,null,null,null,null,null,null,null,null,null,null,null,0]
[null,null,null,null,null,null,null,null,null,null,null,null,null,null,null,null,null,null,null,null,null,null,0]
[null,null,null,null,null,null,null,null,null,null,null,null,null,null,null,null,null,null,null,null,null,null,0]
[null,null,null,null,null,null,null,null,null,null,null,null,null,null,null,null,null,null,null,null,null,null,0]
[null,null,null,null,null,null,null,null,null,null,null,null,null,null,null,null,null,null,null,null,null,null,0]
[null,null,null,null,null,null,null,null,null,null,null,null,null,null,null,null,null,null,null,null,null,null,0]
[null,null,null,null,null,null,null,null,null,null,null,null,null,null,null,null,null,null,null,null,null,null,0]
[null,null,null,null,null,null,null,null,null,null,null,null,null,null,null,null,null,null,null,null,null,null,0]
[null,null,null,null,null,null,null,null,null,null,null,null,null,null,null,null,null,null,null,null,null,null,0]
[null,null,null,null,null,null,null,null,null,null,null,null,null,null,null,null,null,null,null,null,null,null,0]
[null,null,null,null,null,null,null,null,null,null,null,null,null,null,null,null,null,null,null,null,null,null,0]
[null,null,null,null,null,null,null,null,null,null,null,null,null,null,null,null,null,null,null,null,null,null,0]
[null,null,null,null,null,null,null,null,null,null,null,null,null,null,null,null,null,null,null,null,null,null,0]
[null,null,null,null,null,null,null,null,null,null,null,null,null,null,null,null,null,null,null,null,null,null,0]
[null,null,null,null,null,null,null,null,null,null,null,null,null,null,null,null,null,null,null,null,null,null,0]
[null,null,null,null,null,null,null,null,null,null,null,null,null,null,null,null,null,null,null,null,null,null,0]
[null,null,null,null,null,null,null,null,null,null,null,null,null,null,null,null,null,null,null,null,null,null,0]
[null,null,null,null,null,null,null,null,null,null,null,null,null,null,null,null,null,null,null,null,null,null,0]
[null,null,null,null,null,null,null,null,null,null,null,null,null,null,null,null,null,null,null,null,null,null,0]
[null,null,null,null,null,null,null,null,null,null,null,null,null,null,null,null,null,null,null,null,null,null,0]
[null,null,null,null,null,null,null,null,null,null,null,null,null,null,null,null,null,null,null,null,null,null,0]
[null,null,null,null,null,null,null,null,null,null,null,null,null,null,null,null,null,null,null,null,null,null,0]
[null,null,null,null,null,null,null,null,null,null,null,null,null,null,null,null,null,null,null,null,null,null,0]
[null,null,null,null,null,null,null,null,null,null,null,null,null,null,null,null,null,null,null,null,null,null,0]
[null,null,null,null,null,null,null,null,null,null,null,null,null,null,null,null,null,null,null,null,null,null,0]
[null,null,null,null,null,null,null,null,null,null,null,null,null,null,null,null,null,null,null,null,null,null,0]
[null,null,null,null,null,null,null,null,null,null,null,null,null,null,null,null,null,null,null,null,null,null,0]
[null,null,null,null,null,null,null,null,null,null,null,null,null,null,null,null,null,null,null,null,null,null,0]
[null,null,null,null,null,null,null,null,null,null,null,null,null,null,null,null,null,null,null,null,null,null,0]
[null,null,null,null,null,null,null,null,null,null,null,null,null,null,null,null,null,null,null,null,null,null,0]
[null,null,null,null,null,null,null,null,null,null,null,null,null,null,null,null,null,null,null,null,null,null,0]
[null,null,null,null,null,null,null,null,null,null,null,null,null,null,null,null,null,null,null,null,null,null,0]
[null,null,null,null,null,null,null,null,null,null,null,null,null,null,null,null,null,null,null,null,null,null,0]
[null,null,null,null,null,null,null,null,null,null,null,null,null,null,null,null,null,null,null,null,null,null,0]
[null,null,null,null,null,null,null,null,null,null,null,null,null,null,null,null,null,null,null,null,null,null,0]
[null,null,null,null,null,null,null,null,null,null,null,null,null,null,null,null,null,null,null,null,null,null,0]
[null,null,null,null,null,null,null,null,null,null,null,null,null,null,null,null,null,null,null,null,null,null,0]
[null,null,null,null,null,null,null,null,null,null,null,null,null,null,null,null,null,null,null,null,null,null,0]
[null,null,null,null,null,null,null,null,null,null,null,null,null,null,null,null,null,null,null,null,null,null,0]
[null,null,null,null,null,null,null,null,null,null,null,null,null,null,null,null,null,null,null,null,null,null,{"$f":"L288/43560","v":0}]
[null,null,null,null,null,null,null,null,null,null,null,null,null,null,null,null,null,null,null,null,null,null,0]
[null,null,null,null,null,null,null,null,null,null,null,null,null,null,null,null,null,null,null,null,null,null,0]
[null,null,null,null,null,null,null,null,null,null,null,null,null,null,null,null,null,null,null,null,null,null,0]
[null,null,null,null,null,null,null,null,null,null,null,null,null,null,null,null,null,null,null,null,null,null,0]
[null,null,null,null,null,null,null,null,null,null,null,null,null,null,null,null,null,null,null,null,null,null,0]
[null,null,null,null,null,null,null,null,null,null,null,null,null,null,null,null,null,null,null,null,null,null,0]
[null,null,null,null,null,null,null,null,null,null,null,null,null,null,null,null,null,null,null,null,null,null,0]
[null,null,null,null,null,null,null,null,null,null,null,null,null,null,null,null,null,null,null,null,null,null,0]
[null,null,null,null,null,null,null,null,null,null,null,null,null,null,null,null,null,null,null,null,null,null,0]
[null,null,null,null,null,null,null,null,null,null,null,null,null,null,null,null,null,null,null,null,null,null,0]
[null,null,null,null,null,null,null,null,null,null,null,null,null,null,null,null,null,null,null,null,null,null,0]
[null,null,null,null,null,null,null,null,null,null,null,null,null,null,null,null,null,null,null,null,null,null,0]
[null,null,null,null,null,null,null,null,null,null,null,null,null,null,null,null,null,null,null,null,null,null,0]
[null,null,null,null,null,null,null,null,null,null,null,null,null,null,null,null,null,null,null,null,null,null,0]
[null,null,null,null,null,null,null,null,null,null,null,null,null,null,null,null,null,null,null,null,null,null,0]
[null,null,null,null,null,null,null,null,null,null,null,null,null,null,null,null,null,null,null,null,null,null,0]
[null,null,null,null,null,null,null,null,null,null,null,null,null,null,null,null,null,null,null,null,null,null,0]
[null,null,null,null,null,null,null,null,null,null,null,null,null,null,null,null,null,null,null,null,null,null,0]
[null,null,null,null,null,null,null,null,null,null,null,null,null,null,null,null,null,null,null,null,null,null,0]
[null,null,null,null,null,null,null,null,null,null,null,null,null,null,null,null,null,null,null,null,null,null,0]
[null,null,null,null,null,null,null,null,null,null,null,null,null,null,null,null,null,null,null,null,null,null,0]
[null,null,null,null,null,null,null,null,null,null,null,null,null,null,null,null,null,null,null,null,null,null,0]
[null,null,null,null,null,null,null,null,null,null,null,null,null,null,null,null,null,null,null,null,null,null,0]
[null,null,null,null,null,null,null,null,null,null,null,null,null,null,null,null,null,null,null,null,null,null,0]
[null,null,null,null,null,null,null,null,null,null,null,null,null,null,null,null,null,null,null,null,null,null,0]
[null,null,null,null,null,null,null,null,null,null,null,null,null,null,null,null,null,null,null,null,null,null,0]
[null,null,null,null,null,null,null,null,null,null,null,null,null,null,null,null,null,null,null,null,null,null,0]
[null,null,null,null,null,null,null,null,null,null,null,null,null,null,null,null,null,null,null,null,null,null,0]
[null,null,null,null,null,null,null,null,null,null,null,null,null,null,null,null,null,null,null,null,null,null,0]
[null,null,null,null,null,null,null,null,null,null,null,null,null,null,null,null,null,null,null,null,null,null,0]
[null,null,null,null,null,null,null,null,null,null,null,null,null,null,null,null,null,null,null,null,null,null,0]
[null,null,null,null,null,null,null,null,null,null,null,null,null,null,null,null,null,null,null,null,null,null,0]
[null,null,null,null,null,null,null,null,null,null,null,null,null,null,null,null,null,null,null,null,null,null,0]
[null,null,null,null,null,null,null,null,null,null,null,null,null,null,null,null,null,null,null,null,null,null,0]
[null,null,null,null,null,null,null,null,null,null,null,null,null,null,null,null,null,null,null,null,null,null,0]
[null,null,null,null,null,null,null,null,null,null,null,null,null,null,null,null,null,null,null,null,null,null,0]
[null,null,null,null,null,null,null,null,null,null,null,null,null,null,null,null,null,null,null,null,null,null,0]
[null,null,null,null,null,null,null,null,null,null,null,null,null,null,null,null,null,null,null,null,null,null,0]
[null,null,null,null,null,null,null,null,null,null,null,null,null,null,null,null,null,null,null,null,null,null,0]
[null,null,null,null,null,null,null,null,null,null,null,null,null,null,null,null,null,null,null,null,null,null,0]
[null,null,null,null,null,null,null,null,null,null,null,null,null,null,null,null,null,null,null,null,null,null,0]
[null,null,null,null,null,null,null,null,null,null,null,null,null,null,null,null,null,null,null,null,null,null,0]
[null,null,null,null,null,null,null,null,null,null,null,null,null,null,null,null,null,null,null,null,null,null,0]
[null,null,null,null,null,null,null,null,null,null,null,null,null,null,null,null,null,null,null,null,null,null,0]
[null,null,null,null,null,null,null,null,null,null,null,null,null,null,null,null,null,null,null,null,null,null,0]
[null,null,null,null,null,null,null,null,null,null,null,null,null,null,null,null,null,null,null,null,null,null,0]
[null,null,null,null,null,null,null,null,null,null,null,null,null,null,null,null,null,null,null,null,null,null,0]
[null,null,null,null,null,null,null,null,null,null,null,null,null,null,null,null,null,null,null,null,null,null,0]
[null,null,null,null,null,null,null,null,null,null,null,null,null,null,null,null,null,null,null,null,null,null,0]
[null,null,null,null,null,null,null,null,null,null,null,null,null,null,null,null,null,null,null,null,null,null,0]
[null,null,null,null,null,null,null,null,null,null,null,null,null,null,null,null,null,null,null,null,null,null,0]
[null,null,null,null,null,null,null,null,null,null,null,null,null,null,null,null,null,null,null,null,null,null,0]
[null,null,null,null,null,null,null,null,null,null,null,null,null,null,null,null,null,null,null,null,null,null,0]
[null,null,null,null,null,null,null,null,null,null,null,null,null,null,null,null,null,null,null,null,null,null,0]
[null,null,null,null,null,null,null,null,null,null,null,null,null,null,null,null,null,null,null,null,null,null,0]
[null,null,null,null,null,null,null,null,null,null,null,null,null,null,null,null,null,null,null,null,null,null,0]
[null,null,null,null,null,null,null,null,null,null,null,null,null,null,null,null,null,null,null,null,null,null,0]
[null,null,null,null,null,null,null,null,null,null,null,null,null,null,null,null,null,null,null,null,null,null,0]
[null,null,null,null,null,null,null,null,null,null,null,null,null,null,null,null,null,null,null,null,null,null,0]
[null,null,null,null,null,null,null,null,null,null,null,null,null,null,null,null,null,null,null,null,null,null,0]
[null,null,null,null,null,null,null,null,null,null,null,null,null,null,null,null,null,null,null,null,null,null,0]
[null,null,null,null,null,null,null,null,null,null,null,null,null,null,null,null,null,null,null,null,null,null,0]
[null,null,null,null,null,null,null,null,null,null,null,null,null,null,null,null,null,null,null,null,null,null,0]
[null,null,null,null,null,null,null,null,null,null,null,null,null,null,null,null,null,null,null,null,null,null,{"$f":"L352/43560","v":0}]
[null,null,null,null,null,null,null,null,null,null,null,null,null,null,null,null,null,null,null,null,null,null,0]
[null,null,null,null,null,null,null,null,null,null,null,null,null,null,null,null,null,null,null,null,null,null,0]
[null,null,null,null,null,null,null,null,null,null,null,null,null,null,null,null,null,null,null,null,null,null,0]
[null,null,null,null,null,null,null,null,null,null,null,null,null,null,null,null,null,null,null,null,null,null,0]
[null,null,null,null,null,null,null,null,null,null,null,null,null,null,null,null,null,null,null,null,null,null,0]
[null,null,null,null,null,null,null,null,null,null,null,null,null,null,null,null,null,null,null,null,null,null,0]
[null,null,null,null,null,null,null,null,null,null,null,null,null,null,null,null,null,null,null,null,null,null,0]
[null,null,null,null,null,null,null,null,null,null,null,null,null,null,null,null,null,null,null,null,null,null,0]
[null,null,null,null,null,null,null,null,null,null,null,null,null,null,null,null,null,null,null,null,null,null,0]
[null,null,null,null,null,null,null,null,null,null,null,null,null,null,null,null,null,null,null,null,null,null,0]
[null,null,null,null,null,null,null,null,null,null,null,null,null,null,null,null,null,null,null,null,null,null,0]
[null,null,null,null,null,null,null,null,null,null,null,null,null,null,null,null,null,null,null,null,null,null,0]
[null,null,null,null,null,null,null,null,null,null,null,null,null,null,null,null,null,null,null,null,null,null,0]
[null,null,null,null,null,null,null,null,null,null,null,null,null,null,null,null,null,null,null,null,null,null,0]
[null,null,null,null,null,null,null,null,null,null,null,null,null,null,null,null,null,null,null,null,null,null,0]
[null,null,null,null,null,null,null,null,null,null,null,null,null,null,null,null,null,null,null,null,null,null,0]
[null,null,null,null,null,null,null,null,null,null,null,null,null,null,null,null,null,null,null,null,null,null,0]
[null,null,null,null,null,null,null,null,null,null,null,null,null,null,null,null,null,null,null,null,null,null,0]
[null,null,null,null,null,null,null,null,null,null,null,null,null,null,null,null,null,null,null,null,null,null,0]
[null,null,null,null,null,null,null,null,null,null,null,null,null,null,null,null,null,null,null,null,null,null,0]
[null,null,null,null,null,null,null,null,null,null,null,null,null,null,null,null,null,null,null,null,null,null,0]
[null,null,null,null,null,null,null,null,null,null,null,null,null,null,null,null,null,null,null,null,null,null,0]
[null,null,null,null,null,null,null,null,null,null,null,null,null,null,null,null,null,null,null,null,null,null,0]
[null,null,null,null,null,null,null,null,null,null,null,null,null,null,null,null,null,null,null,null,null,null,0]
[null,null,null,null,null,null,null,null,null,null,null,null,null,null,null,null,null,null,null,null,null,null,0]
[null,null,null,null,null,null,null,null,null,null,null,null,null,null,null,null,null,null,null,null,null,null,0]
[null,null,null,null,null,null,null,null,null,null,null,null,null,null,null,null,null,null,null,null,null,null,0]
[null,null,null,null,null,null,null,null,null,null,null,null,null,null,null,null,null,null,null,null,null,null,0]
[null,null,null,null,null,null,null,null,null,null,null,null,null,null,null,null,null,null,null,null,null,null,0]
[null,null,null,null,null,null,null,null,null,null,null,null,null,null,null,null,null,null,null,null,null,null,0]
[null,null,null,null,null,null,null,null,null,null,null,null,null,null,null,null,null,null,null,null,null,null,0]
[null,null,null,null,null,null,null,null,null,null,null,null,null,null,null,null,null,null,null,null,null,null,0]
[null,null,null,null,null,null,null,null,null,null,null,null,null,null,null,null,null,null,null,null,null,null,0]
[null,null,null,null,null,null,null,null,null,null,null,null,null,null,null,null,null,null,null,null,null,null,0]
[null,null,null,null,null,null,null,null,null,null,null,null,null,null,null,null,null,null,null,null,null,null,0]
[null,null,null,null,null,null,null,null,null,null,null,null,null,null,null,null,null,null,null,null,null,null,0]
[null,null,null,null,null,null,null,null,null,null,null,null,null,null,null,null,null,null,null,null,null,null,0]
[null,null,null,null,null,null,null,null,null,null,null,null,null,null,null,null,null,null,null,null,null,null,0]
[null,null,null,null,null,null,null,null,null,null,null,null,null,null,null,null,null,null,null,null,null,null,0]
[null,null,null,null,null,null,null,null,null,null,null,null,null,null,null,null,null,null,null,null,null,null,0]
[null,null,null,null,null,null,null,null,null,null,null,null,null,null,null,null,null,null,null,null,null,null,0]
[null,null,null,null,null,null,null,null,null,null,null,null,null,null,null,null,null,null,null,null,null,null,0]
[null,null,null,null,null,null,null,null,null,null,null,null,null,null,null,null,null,null,null,null,null,null,0]
[null,null,null,null,null,null,null,null,null,null,null,null,null,null,null,null,null,null,null,null,null,null,0]
[null,null,null,null,null,null,null,null,null,null,null,null,null,null,null,null,null,null,null,null,null,null,0]
[null,null,null,null,null,null,null,null,null,null,null,null,null,null,null,null,null,null,null,null,null,null,0]
[null,null,null,null,null,null,null,null,null,null,null,null,null,null,null,null,null,null,null,null,null,null,0]
[null,null,null,null,null,null,null,null,null,null,null,null,null,null,null,null,null,null,null,null,null,null,0]
[null,null,null,null,null,null,null,null,null,null,null,null,null,null,null,null,null,null,null,null,null,null,0]
[null,null,null,null,null,null,null,null,null,null,null,null,null,null,null,null,null,null,null,null,null,null,0]
[null,null,null,null,null,null,null,null,null,null,null,null,null,null,null,null,null,null,null,null,null,null,0]
[null,null,null,null,null,null,null,null,null,null,null,null,null,null,null,null,null,null,null,null,null,null,0]
[null,null,null,null,null,null,null,null,null,null,null,null,null,null,null,null,null,null,null,null,null,null,0]
[null,null,null,null,null,null,null,null,null,null,null,null,null,null,null,null,null,null,null,null,null,null,0]
[null,null,null,null,null,null,null,null,null,null,null,null,null,null,null,null,null,null,null,null,null,null,0]
[null,null,null,null,null,null,null,null,null,null,null,null,null,null,null,null,null,null,null,null,null,null,0]
[null,null,null,null,null,null,null,null,null,null,null,null,null,null,null,null,null,null,null,null,null,null,0]
[null,null,null,null,null,null,null,null,null,null,null,null,null,null,null,null,null,null,null,null,null,null,0]
[null,null,null,null,null,null,null,null,null,null,null,null,null,null,null,null,null,null,null,null,null,null,0]
[null,null,null,null,null,null,null,null,null,null,null,null,null,null,null,null,null,null,null,null,null,null,0]
[null,null,null,null,null,null,null,null,null,null,null,null,null,null,null,null,null,null,null,null,null,null,0]
[null,null,null,null,null,null,null,null,null,null,null,null,null,null,null,null,null,null,null,null,null,null,0]
[null,null,null,null,null,null,null,null,null,null,null,null,null,null,null,null,null,null,null,null,null,null,0]
[null,null,null,null,null,null,null,null,null,null,null,null,null,null,null,null,null,null,null,null,null,null,{"$f":"L416/43560","v":0}]
[null,null,null,null,null,null,null,null,null,null,null,null,null,null,null,null,null,null,null,null,null,null,0]
[null,null,null,null,null,null,null,null,null,null,null,null,null,null,null,null,null,null,null,null,null,null,0]
[null,null,null,null,null,null,null,null,null,null,null,null,null,null,null,null,null,null,null,null,null,null,0]
[null,null,null,null,null,null,null,null,null,null,null,null,null,null,null,null,null,null,null,null,null,null,0]
[null,null,null,null,null,null,null,null,null,null,null,null,null,null,null,null,null,null,null,null,null,null,0]
[null,null,null,null,null,null,null,null,null,null,null,null,null,null,null,null,null,null,null,null,null,null,0]
[null,null,null,null,null,null,null,null,null,null,null,null,null,null,null,null,null,null,null,null,null,null,0]
[null,null,null,null,null,null,null,null,null,null,null,null,null,null,null,null,null,null,null,null,null,null,0]
[null,null,null,null,null,null,null,null,null,null,null,null,null,null,null,null,null,null,null,null,null,null,0]
[null,null,null,null,null,null,null,null,null,null,null,null,null,null,null,null,null,null,null,null,null,null,0]
[null,null,null,null,null,null,null,null,null,null,null,null,null,null,null,null,null,null,null,null,null,null,0]
[null,null,null,null,null,null,null,null,null,null,null,null,null,null,null,null,null,null,null,null,null,null,0]
[null,null,null,null,null,null,null,null,null,null,null,null,null,null,null,null,null,null,null,null,null,null,0]
[null,null,null,null,null,null,null,null,null,null,null,null,null,null,null,null,null,null,null,null,null,null,0]
[null,null,null,null,null,null,null,null,null,null,null,null,null,null,null,null,null,null,null,null,null,null,0]
[null,null,null,null,null,null,null,null,null,null,null,null,null,null,null,null,null,null,null,null,null,null,0]
[null,null,null,null,null,null,null,null,null,null,null,null,null,null,null,null,null,null,null,null,null,null,0]
[null,null,null,null,null,null,null,null,null,null,null,null,null,null,null,null,null,null,null,null,null,null,0]
[null,null,null,null,null,null,null,null,null,null,null,null,null,null,null,null,null,null,null,null,null,null,0]
[null,null,null,null,null,null,null,null,null,null,null,null,null,null,null,null,null,null,null,null,null,null,0]
[null,null,null,null,null,null,null,null,null,null,null,null,null,null,null,null,null,null,null,null,null,null,0]
[null,null,null,null,null,null,null,null,null,null,null,null,null,null,null,null,null,null,null,null,null,null,0]
[null,null,null,null,null,null,null,null,null,null,null,null,null,null,null,null,null,null,null,null,null,null,0]
[null,null,null,null,null,null,null,null,null,null,null,null,null,null,null,null,null,null,null,null,null,null,0]
[null,null,null,null,null,null,null,null,null,null,null,null,null,null,null,null,null,null,null,null,null,null,0]
[null,null,null,null,null,null,null,null,null,null,null,null,null,null,null,null,null,null,null,null,null,null,0]
[null,null,null,null,null,null,null,null,null,null,null,null,null,null,null,null,null,null,null,null,null,null,0]
[null,null,null,null,null,null,null,null,null,null,null,null,null,null,null,null,null,null,null,null,null,null,0]
[null,null,null,null,null,null,null,null,null,null,null,null,null,null,null,null,null,null,null,null,null,null,0]
[null,null,null,null,null,null,null,null,null,null,null,null,null,null,null,null,null,null,null,null,null,null,0]
[null,null,null,null,null,null,null,null,null,null,null,null,null,null,null,null,null,null,null,null,null,null,0]
[null,null,null,null,null,null,null,null,null,null,null,null,null,null,null,null,null,null,null,null,null,null,0]
[null,null,null,null,null,null,null,null,null,null,null,null,null,null,null,null,null,null,null,null,null,null,0]
[null,null,null,null,null,null,null,null,null,null,null,null,null,null,null,null,null,null,null,null,null,null,0]
[null,null,null,null,null,null,null,null,null,null,null,null,null,null,null,null,null,null,null,null,null,null,0]
[null,null,null,null,null,null,null,null,null,null,null,null,null,null,null,null,null,null,null,null,null,null,0]
[null,null,null,null,null,null,null,null,null,null,null,null,null,null,null,null,null,null,null,null,null,null,0]
[null,null,null,null,null,null,null,null,null,null,null,null,null,null,null,null,null,null,null,null,null,null,0]
[null,null,null,null,null,null,null,null,null,null,null,null,null,null,null,null,null,null,null,null,null,null,0]
[null,null,null,null,null,null,null,null,null,null,null,null,null,null,null,null,null,null,null,null,null,null,0]
[null,null,null,null,null,null,null,null,null,null,null,null,null,null,null,null,null,null,null,null,null,null,0]
[null,null,null,null,null,null,null,null,null,null,null,null,null,null,null,null,null,null,null,null,null,null,0]
[null,null,null,null,null,null,null,null,null,null,null,null,null,null,null,null,null,null,null,null,null,null,0]
[null,null,null,null,null,null,null,null,null,null,null,null,null,null,null,null,null,null,null,null,null,null,0]
[null,null,null,null,null,null,null,null,null,null,null,null,null,null,null,null,null,null,null,null,null,null,0]
[null,null,null,null,null,null,null,null,null,null,null,null,null,null,null,null,null,null,null,null,null,null,0]
[null,null,null,null,null,null,null,null,null,null,null,null,null,null,null,null,null,null,null,null,null,null,0]
[null,null,null,null,null,null,null,null,null,null,null,null,null,null,null,null,null,null,null,null,null,null,0]
[null,null,null,null,null,null,null,null,null,null,null,null,null,null,null,null,null,null,null,null,null,null,0]
[null,null,null,null,null,null,null,null,null,null,null,null,null,null,null,null,null,null,null,null,null,null,0]
[null,null,null,null,null,null,null,null,null,null,null,null,null,null,null,null,null,null,null,null,null,null,0]
[null,null,null,null,null,null,null,null,null,null,null,null,null,null,null,null,null,null,null,null,null,null,0]
[null,null,null,null,null,null,null,null,null,null,null,null,null,null,null,null,null,null,null,null,null,null,0]
[null,null,null,null,null,null,null,null,null,null,null,null,null,null,null,null,null,null,null,null,null,null,0]
[null,null,null,null,null,null,null,null,null,null,null,null,null,null,null,null,null,null,null,null,null,null,0]
[null,null,null,null,null,null,null,null,null,null,null,null,null,null,null,null,null,null,null,null,null,null,0]
[null,null,null,null,null,null,null,null,null,null,null,null,null,null,null,null,null,null,null,null,null,null,0]
[null,null,null,null,null,null,null,null,null,null,null,null,null,null,null,null,null,null,null,null,null,null,0]
[null,null,null,null,null,null,null,null,null,null,null,null,null,null,null,null,null,null,null,null,null,null,0]
[null,null,null,null,null,null,null,null,null,null,null,null,null,null,null,null,null,null,null,null,null,null,0]
[null,null,null,null,null,null,null,null,null,null,null,null,null,null,null,null,null,null,null,null,null,null,0]
[null,null,null,null,null,null,null,null,null,null,null,null,null,null,null,null,null,null,null,null,null,null,0]
[null,null,null,null,null,null,null,null,null,null,null,null,null,null,null,null,null,null,null,null,null,null,0]
[null,null,null,null,null,null,null,null,null,null,null,null,null,null,null,null,null,null,null,null,null,null,{"$f":"L480/43560","v":0}]
[null,null,null,null,null,null,null,null,null,null,null,null,null,null,null,null,null,null,null,null,null,null,0]
[null,null,null,null,null,null,null,null,null,null,null,null,null,null,null,null,null,null,null,null,null,null,0]
[null,null,null,null,null,null,null,null,null,null,null,null,null,null,null,null,null,null,null,null,null,null,0]
[null,null,null,null,null,null,null,null,null,null,null,null,null,null,null,null,null,null,null,null,null,null,0]
[null,null,null,null,null,null,null,null,null,null,null,null,null,null,null,null,null,null,null,null,null,null,0]
[null,null,null,null,null,null,null,null,null,null,null,null,null,null,null,null,null,null,null,null,null,null,0]
[null,null,null,null,null,null,null,null,null,null,null,null,null,null,null,null,null,null,null,null,null,null,0]
[null,null,null,null,null,null,null,null,null,null,null,null,null,null,null,null,null,null,null,null,null,null,0]
[null,null,null,null,null,null,null,null,null,null,null,null,null,null,null,null,null,null,null,null,null,null,0]
[null,null,null,null,null,null,null,null,null,null,null,null,null,null,null,null,null,null,null,null,null,null,0]
[null,null,null,null,null,null,null,null,null,null,null,null,null,null,null,null,null,null,null,null,null,null,0]
[null,null,null,null,null,null,null,null,null,null,null,null,null,null,null,null,null,null,null,null,null,null,0]
[null,null,null,null,null,null,null,null,null,null,null,null,null,null,null,null,null,null,null,null,null,null,0]
[null,null,null,null,null,null,null,null,null,null,null,null,null,null,null,null,null,null,null,null,null,null,0]
[null,null,null,null,null,null,null,null,null,null,null,null,null,null,null,null,null,null,null,null,null,null,0]
[null,null,null,null,null,null,null,null,null,null,null,null,null,null,null,null,null,null,null,null,null,null,0]
[null,null,null,null,null,null,null,null,null,null,null,null,null,null,null,null,null,null,null,null,null,null,0]
[null,null,null,null,null,null,null,null,null,null,null,null,null,null,null,null,null,null,null,null,null,null,0]
[null,null,null,null,null,null,null,null,null,null,null,null,null,null,null,null,null,null,null,null,null,null,0]
[null,null,null,null,null,null,null,null,null,null,null,null,null,null,null,null,null,null,null,null,null,null,0]
[null,null,null,null,null,null,null,null,null,null,null,null,null,null,null,null,null,null,null,null,null,null,0]
[null,null,null,null,null,null,null,null,null,null,null,null,null,null,null,null,null,null,null,null,null,null,0]
[null,null,null,null,null,null,null,null,null,null,null,null,null,null,null,null,null,null,null,null,null,null,0]
[null,null,null,null,null,null,null,null,null,null,null,null,null,null,null,null,null,null,null,null,null,null,0]
[null,null,null,null,null,null,null,null,null,null,null,null,null,null,null,null,null,null,null,null,null,null,0]
[null,null,null,null,null,null,null,null,null,null,null,null,null,null,null,null,null,null,null,null,null,null,0]
[null,null,null,null,null,null,null,null,null,null,null,null,null,null,null,null,null,null,null,null,null,null,0]
[null,null,null,null,null,null,null,null,null,null,null,null,null,null,null,null,null,null,null,null,null,null,0]
[null,null,null,null,null,null,null,null,null,null,null,null,null,null,null,null,null,null,null,null,null,null,0]
[null,null,null,null,null,null,null,null,null,null,null,null,null,null,null,null,null,null,null,null,null,null,0]
[null,null,null,null,null,null,null,null,null,null,null,null,null,null,null,null,null,null,null,null,null,null,0]
[null,null,null,null,null,null,null,null,null,null,null,null,null,null,null,null,null,null,null,null,null,null,0]
[null,null,null,null,null,null,null,null,null,null,null,null,null,null,null,null,null,null,null,null,null,null,0]
[null,null,null,null,null,null,null,null,null,null,null,null,null,null,null,null,null,null,null,null,null,null,0]
[null,null,null,null,null,null,null,null,null,null,null,null,null,null,null,null,null,null,null,null,null,null,0]
[null,null,null,null,null,null,null,null,null,null,null,null,null,null,null,null,null,null,null,null,null,null,0]
[null,null,null,null,null,null,null,null,null,null,null,null,null,null,null,null,null,null,null,null,null,null,0]
[null,null,null,null,null,null,null,null,null,null,null,null,null,null,null,null,null,null,null,null,null,null,0]
[null,null,null,null,null,null,null,null,null,null,null,null,null,null,null,null,null,null,null,null,null,null,0]
[null,null,null,null,null,null,null,null,null,null,null,null,null,null,null,null,null,null,null,null,null,null,0]
[null,null,null,null,null,null,null,null,null,null,null,null,null,null,null,null,null,null,null,null,null,null,0]
[null,null,null,null,null,null,null,null,null,null,null,null,null,null,null,null,null,null,null,null,null,null,0]
[null,null,null,null,null,null,null,null,null,null,null,null,null,null,null,null,null,null,null,null,null,null,0]
[null,null,null,null,null,null,null,null,null,null,null,null,null,null,null,null,null,null,null,null,null,null,0]
[null,null,null,null,null,null,null,null,null,null,null,null,null,null,null,null,null,null,null,null,null,null,0]
[null,null,null,null,null,null,null,null,null,null,null,null,null,null,null,null,null,null,null,null,null,null,0]
[null,null,null,null,null,null,null,null,null,null,null,null,null,null,null,null,null,null,null,null,null,null,0]
[null,null,null,null,null,null,null,null,null,null,null,null,null,null,null,null,null,null,null,null,null,null,0]
[null,null,null,null,null,null,null,null,null,null,null,null,null,null,null,null,null,null,null,null,null,null,0]
[null,null,null,null,null,null,null,null,null,null,null,null,null,null,null,null,null,null,null,null,null,null,0]
[null,null,null,null,null,null,null,null,null,null,null,null,null,null,null,null,null,null,null,null,null,null,0]
[null,null,null,null,null,null,null,null,null,null,null,null,null,null,null,null,null,null,null,null,null,null,0]
[null,null,null,null,null,null,null,null,null,null,null,null,null,null,null,null,null,null,null,null,null,null,0]
[null,null,null,null,null,null,null,null,null,null,null,null,null,null,null,null,null,null,null,null,null,null,0]
[null,null,null,null,null,null,null,null,null,null,null,null,null,null,null,null,null,null,null,null,null,null,0]
[null,null,null,null,null,null,null,null,null,null,null,null,null,null,null,null,null,null,null,null,null,null,0]
[null,null,null,null,null,null,null,null,null,null,null,null,null,null,null,null,null,null,null,null,null,null,0]
[null,null,null,null,null,null,null,null,null,null,null,null,null,null,null,null,null,null,null,null,null,null,0]
[null,null,null,null,null,null,null,null,null,null,null,null,null,null,null,null,null,null,null,null,null,null,0]
[null,null,null,null,null,null,null,null,null,null,null,null,null,null,null,null,null,null,null,null,null,null,0]
[null,null,null,null,null,null,null,null,null,null,null,null,null,null,null,null,null,null,null,null,null,null,0]
[null,null,null,null,null,null,null,null,null,null,null,null,null,null,null,null,null,null,null,null,null,null,0]
[null,null,null,null,null,null,null,null,null,null,null,null,null,null,null,null,null,null,null,null,null,null,0]
[null,null,null,null,null,null,null,null,null,null,null,null,null,null,null,null,null,null,null,null,null,null,{"$f":"L544/43560","v":0}]
[null,null,null,null,null,null,null,null,null,null,null,null,null,null,null,null,null,null,null,null,null,null,0]
[null,null,null,null,null,null,null,null,null,null,null,null,null,null,null,null,null,null,null,null,null,null,0]
[null,null,null,null,null,null,null,null,null,null,null,null,null,null,null,null,null,null,null,null,null,null,0]
[null,null,null,null,null,null,null,null,null,null,null,null,null,null,null,null,null,null,null,null,null,null,0]
[null,null,null,null,null,null,null,null,null,null,null,null,null,null,null,null,null,null,null,null,null,null,0]
[null,null,null,null,null,null,null,null,null,null,null,null,null,null,null,null,null,null,null,null,null,null,0]
[null,null,null,null,null,null,null,null,null,null,null,null,null,null,null,null,null,null,null,null,null,null,0]
[null,null,null,null,null,null,null,null,null,null,null,null,null,null,null,null,null,null,null,null,null,null,0]
[null,null,null,null,null,null,null,null,null,null,null,null,null,null,null,null,null,null,null,null,null,null,0]
[null,null,null,null,null,null,null,null,null,null,null,null,null,null,null,null,null,null,null,null,null,null,0]
[null,null,null,null,null,null,null,null,null,null,null,null,null,null,null,null,null,null,null,null,null,null,0]
[null,null,null,null,null,null,null,null,null,null,null,null,null,null,null,null,null,null,null,null,null,null,0]
[null,null,null,null,null,null,null,null,null,null,null,null,null,null,null,null,null,null,null,null,null,null,0]
[null,null,null,null,null,null,null,null,null,null,null,null,null,null,null,null,null,null,null,null,null,null,0]
[null,null,null,null,null,null,null,null,null,null,null,null,null,null,null,null,null,null,null,null,null,null,0]
[null,null,null,null,null,null,null,null,null,null,null,null,null,null,null,null,null,null,null,null,null,null,0]
[null,null,null,null,null,null,null,null,null,null,null,null,null,null,null,null,null,null,null,null,null,null,0]
[null,null,null,null,null,null,null,null,null,null,null,null,null,null,null,null,null,null,null,null,null,null,0]
[null,null,null,null,null,null,null,null,null,null,null,null,null,null,null,null,null,null,null,null,null,null,0]
[null,null,null,null,null,null,null,null,null,null,null,null,null,null,null,null,null,null,null,null,null,null,0]
[null,null,null,null,null,null,null,null,null,null,null,null,null,null,null,null,null,null,null,null,null,null,0]
[null,null,null,null,null,null,null,null,null,null,null,null,null,null,null,null,null,null,null,null,null,null,0]
[null,null,null,null,null,null,null,null,null,null,null,null,null,null,null,null,null,null,null,null,null,null,0]
[null,null,null,null,null,null,null,null,null,null,null,null,null,null,null,null,null,null,null,null,null,null,0]
[null,null,null,null,null,null,null,null,null,null,null,null,null,null,null,null,null,null,null,null,null,null,0]
[null,null,null,null,null,null,null,null,null,null,null,null,null,null,null,null,null,null,null,null,null,null,0]
[null,null,null,null,null,null,null,null,null,null,null,null,null,null,null,null,null,null,null,null,null,null,0]
[null,null,null,null,null,null,null,null,null,null,null,null,null,null,null,null,null,null,null,null,null,null,0]
[null,null,null,null,null,null,null,null,null,null,null,null,null,null,null,null,null,null,null,null,null,null,0]
[null,null,null,null,null,null,null,null,null,null,null,null,null,null,null,null,null,null,null,null,null,null,0]
[null,null,null,null,null,null,null,null,null,null,null,null,null,null,null,null,null,null,null,null,null,null,0]
[null,null,null,null,null,null,null,null,null,null,null,null,null,null,null,null,null,null,null,null,null,null,0]
[null,null,null,null,null,null,null,null,null,null,null,null,null,null,null,null,null,null,null,null,null,null,0]
[null,null,null,null,null,null,null,null,null,null,null,null,null,null,null,null,null,null,null,null,null,null,0]
[null,null,null,null,null,null,null,null,null,null,null,null,null,null,null,null,null,null,null,null,null,null,0]
[null,null,null,null,null,null,null,null,null,null,null,null,null,null,null,null,null,null,null,null,null,null,0]
[null,null,null,null,null,null,null,null,null,null,null,null,null,null,null,null,null,null,null,null,null,null,0]
[null,null,null,null,null,null,null,null,null,null,null,null,null,null,null,null,null,null,null,null,null,null,0]
[null,null,null,null,null,null,null,null,null,null,null,null,null,null,null,null,null,null,null,null,null,null,0]
[null,null,null,null,null,null,null,null,null,null,null,null,null,null,null,null,null,null,null,null,null,null,0]
[null,null,null,null,null,null,null,null,null,null,null,null,null,null,null,null,null,null,null,null,null,null,0]
[null,null,null,null,null,null,null,null,null,null,null,null,null,null,null,null,null,null,null,null,null,null,0]
[null,null,null,null,null,null,null,null,null,null,null,null,null,null,null,null,null,null,null,null,null,null,0]
[null,null,null,null,null,null,null,null,null,null,null,null,null,null,null,null,null,null,null,null,null,null,0]
[null,null,null,null,null,null,null,null,null,null,null,null,null,null,null,null,null,null,null,null,null,null,0]
[null,null,null,null,null,null,null,null,null,null,null,null,null,null,null,null,null,null,null,null,null,null,0]
[null,null,null,null,null,null,null,null,null,null,null,null,null,null,null,null,null,null,null,null,null,null,0]
[null,null,null,null,null,null,null,null,null,null,null,null,null,null,null,null,null,null,null,null,null,null,0]
[null,null,null,null,null,null,null,null,null,null,null,null,null,null,null,null,null,null,null,null,null,null,0]
[null,null,null,null,null,null,null,null,null,null,null,null,null,null,null,null,null,null,null,null,null,null,0]
[null,null,null,null,null,null,null,null,null,null,null,null,null,null,null,null,null,null,null,null,null,null,0]
[null,null,null,null,null,null,null,null,null,null,null,null,null,null,null,null,null,null,null,null,null,null,0]
[null,null,null,null,null,null,null,null,null,null,null,null,null,null,null,null,null,null,null,null,null,null,0]
[null,null,null,null,null,null,null,null,null,null,null,null,null,null,null,null,null,null,null,null,null,null,0]
[null,null,null,null,null,null,null,null,null,null,null,null,null,null,null,null,null,null,null,null,null,null,0]
[null,null,null,null,null,null,null,null,null,null,null,null,null,null,null,null,null,null,null,null,null,null,0]
[null,null,null,null,null,null,null,null,null,null,null,null,null,null,null,null,null,null,null,null,null,null,0]
[null,null,null,null,null,null,null,null,null,null,null,null,null,null,null,null,null,null,null,null,null,null,0]
[null,null,null,null,null,null,null,null,null,null,null,null,null,null,null,null,null,null,null,null,null,null,0]
[null,null,null,null,null,null,null,null,null,null,null,null,null,null,null,null,null,null,null,null,null,null,0]
[null,null,null,null,null,null,null,null,null,null,null,null,null,null,null,null,null,null,null,null,null,null,0]
[null,null,null,null,null,null,null,null,null,null,null,null,null,null,null,null,null,null,null,null,null,null,0]
[null,null,null,null,null,null,null,null,null,null,null,null,null,null,null,null,null,null,null,null,null,null,0]
[null,null,null,null,null,null,null,null,null,null,null,null,null,null,null,null,null,null,null,null,null,null,{"$f":"L608/43560","v":0}]
[null,null,null,null,null,null,null,null,null,null,null,null,null,null,null,null,null,null,null,null,null,null,0]
[null,null,null,null,null,null,null,null,null,null,null,null,null,null,null,null,null,null,null,null,null,null,0]
[null,null,null,null,null,null,null,null,null,null,null,null,null,null,null,null,null,null,null,null,null,null,0]
[null,null,null,null,null,null,null,null,null,null,null,null,null,null,null,null,null,null,null,null,null,null,0]
[null,null,null,null,null,null,null,null,null,null,null,null,null,null,null,null,null,null,null,null,null,null,0]
[null,null,null,null,null,null,null,null,null,null,null,null,null,null,null,null,null,null,null,null,null,null,0]
[null,null,null,null,null,null,null,null,null,null,null,null,null,null,null,null,null,null,null,null,null,null,0]
[null,null,null,null,null,null,null,null,null,null,null,null,null,null,null,null,null,null,null,null,null,null,0]
[null,null,null,null,null,null,null,null,null,null,null,null,null,null,null,null,null,null,null,null,null,null,0]
[null,null,null,null,null,null,null,null,null,null,null,null,null,null,null,null,null,null,null,null,null,null,0]
[null,null,null,null,null,null,null,null,null,null,null,null,null,null,null,null,null,null,null,null,null,null,0]
[null,null,null,null,null,null,null,null,null,null,null,null,null,null,null,null,null,null,null,null,null,null,0]
[null,null,null,null,null,null,null,null,null,null,null,null,null,null,null,null,null,null,null,null,null,null,0]
[null,null,null,null,null,null,null,null,null,null,null,null,null,null,null,null,null,null,null,null,null,null,0]
[null,null,null,null,null,null,null,null,null,null,null,null,null,null,null,null,null,null,null,null,null,null,0]
[null,null,null,null,null,null,null,null,null,null,null,null,null,null,null,null,null,null,null,null,null,null,0]
[null,null,null,null,null,null,null,null,null,null,null,null,null,null,null,null,null,null,null,null,null,null,0]
[null,null,null,null,null,null,null,null,null,null,null,null,null,null,null,null,null,null,null,null,null,null,0]
[null,null,null,null,null,null,null,null,null,null,null,null,null,null,null,null,null,null,null,null,null,null,0]
[null,null,null,null,null,null,null,null,null,null,null,null,null,null,null,null,null,null,null,null,null,null,0]
[null,null,null,null,null,null,null,null,null,null,null,null,null,null,null,null,null,null,null,null,null,null,0]
[null,null,null,null,null,null,null,null,null,null,null,null,null,null,null,null,null,null,null,null,null,null,0]
[null,null,null,null,null,null,null,null,null,null,null,null,null,null,null,null,null,null,null,null,null,null,0]
[null,null,null,null,null,null,null,null,null,null,null,null,null,null,null,null,null,null,null,null,null,null,0]
[null,null,null,null,null,null,null,null,null,null,null,null,null,null,null,null,null,null,null,null,null,null,0]
[null,null,null,null,null,null,null,null,null,null,null,null,null,null,null,null,null,null,null,null,null,null,0]
[null,null,null,null,null,null,null,null,null,null,null,null,null,null,null,null,null,null,null,null,null,null,0]
[null,null,null,null,null,null,null,null,null,null,null,null,null,null,null,null,null,null,null,null,null,null,0]
[null,null,null,null,null,null,null,null,null,null,null,null,null,null,null,null,null,null,null,null,null,null,0]
[null,null,null,null,null,null,null,null,null,null,null,null,null,null,null,null,null,null,null,null,null,null,0]
[null,null,null,null,null,null,null,null,null,null,null,null,null,null,null,null,null,null,null,null,null,null,0]
[null,null,null,null,null,null,null,null,null,null,null,null,null,null,null,null,null,null,null,null,null,null,0]
[null,null,null,null,null,null,null,null,null,null,null,null,null,null,null,null,null,null,null,null,null,null,0]
[null,null,null,null,null,null,null,null,null,null,null,null,null,null,null,null,null,null,null,null,null,null,0]
[null,null,null,null,null,null,null,null,null,null,null,null,null,null,null,null,null,null,null,null,null,null,0]
[null,null,null,null,null,null,null,null,null,null,null,null,null,null,null,null,null,null,null,null,null,null,0]
[null,null,null,null,null,null,null,null,null,null,null,null,null,null,null,null,null,null,null,null,null,null,0]
[null,null,null,null,null,null,null,null,null,null,null,null,null,null,null,null,null,null,null,null,null,null,0]
[null,null,null,null,null,null,null,null,null,null,null,null,null,null,null,null,null,null,null,null,null,null,0]
[null,null,null,null,null,null,null,null,null,null,null,null,null,null,null,null,null,null,null,null,null,null,0]
[null,null,null,null,null,null,null,null,null,null,null,null,null,null,null,null,null,null,null,null,null,null,0]
[null,null,null,null,null,null,null,null,null,null,null,null,null,null,null,null,null,null,null,null,null,null,0]
[null,null,null,null,null,null,null,null,null,null,null,null,null,null,null,null,null,null,null,null,null,null,0]
[null,null,null,null,null,null,null,null,null,null,null,null,null,null,null,null,null,null,null,null,null,null,0]
[null,null,null,null,null,null,null,null,null,null,null,null,null,null,null,null,null,null,null,null,null,null,0]
[null,null,null,null,null,null,null,null,null,null,null,null,null,null,null,null,null,null,null,null,null,null,0]
[null,null,null,null,null,null,null,null,null,null,null,null,null,null,null,null,null,null,null,null,null,null,0]
[null,null,null,null,null,null,null,null,null,null,null,null,null,null,null,null,null,null,null,null,null,null,0]
[null,null,null,null,null,null,null,null,null,null,null,null,null,null,null,null,null,null,null,null,null,null,0]
[null,null,null,null,null,null,null,null,null,null,null,null,null,null,null,null,null,null,null,null,null,null,0]
[null,null,null,null,null,null,null,null,null,null,null,null,null,null,null,null,null,null,null,null,null,null,0]
[null,null,null,null,null,null,null,null,null,null,null,null,null,null,null,null,null,null,null,null,null,null,0]
[null,null,null,null,null,null,null,null,null,null,null,null,null,null,null,null,null,null,null,null,null,null,0]

{"sheet":"grass","index":5,"n_rows":23,"n_cols":16,"rows_kept":23,"cut":false,"hidden":false,"merged":[]}
["Common Name","Scientific Name","Cultivar Name","plant type","Cost/lb (PLS)","ORIGIN ","Rooting Habit","hts (ft)","ph","seeds/ lb*","soil moisture","FLOOD TOL."," SHADE TOL. ","SALT TOL.","DROUGHT TOLERANCE ","# of seeds/sq ft @ 1 lb of seed/A"]
[]
["big bluestem","Andropogon gerardii","Niagara","warm season grass",12,"native","bunch","4-6","6-7.5",150000,"W-WM","yes","No","Mod","mod",{"$f":"J3/43560","v":3.443526170798898}]
["broomsedge","Andropogon virginicus",null,"warm season grass",84,"Native","bunch","3","4.7-9",800000,"W-MW","no","No","low","High",18.365472910927455]
["sideoats grama","Bouteloua curtipendula",null,"warm season grass",20,"Native","bunch",3,"6-9",150000,null,"no","No","high","high",3.443526170798898]
["blue grama","Bouteloua gracilis",null,"warm season grass",30,"Native","bunch","1","6.6-8.4",720000,null,"No","No","Mod","High",16.528925619834709]
["bluejoint","Calamagrostis canadensis",null,"cool season grass",232,"native"]
["Emory's sedge","Carex emoryi",null,"sedge",640,"Native","bunch","2",null,848000,null,"yes","No","low","Low",19.467401285583104]
["shallow sedge","Carex lurida",null,"sedge",54,"Native","bunch","1","3",250000,null,"Yes","intermediate","low","Low",5.7392102846648303]
["PA sedge","Carex pensyvanica",null,"sedge",30,"native","bunch","1.5",null,864000,null,"mod","intermediate",null,"Low",19.834710743801654]
["fox sedge","Carex vulpinoidea",null,"sedge",16,"Native","bunch","3","6.8-8.9",19000,null,"Yes","intermediate","none","Low",0.43617998163452709]
["Deertongue","Dichanthelium clandestinum","Tioga'","warm season grass",16,"Native","bunch","2","3.8-5.0",350000,"EXDR-SWPD","Yes","No","Low","High",8.0348943985307617]
["Canada Wildrye","Elymus canadensis",null,"cool season grass",15,"Native","bunch","3-4","5.0-8.0",114000,"WD-MWD","Low","Yes","Mod","Mod",2.6170798898071626]
["riparian wildrye","Elymus riparius","Pa Ecotype","cool season grass",15,"Native","bunch","4","4.5-7.2",125000,null,"mod","Yes","none","Low",2.8696051423324151]
["Virginia Wildrye","Elymus virginicus","Pa Ecotype","cool season grass",15,"Native","bunch","3-4","5.0-7.0",100000,"MWD-PD","Yes","Yes","Mod","Low",2.2956841138659319]
["Hard Fescue","Festuca brevipila ","Chariot'"," cool season grass",2.2999999999999998,"Introduced","bunch","1","4.5-7.5",565000,"EXDR-WD","No","Yes","Low","High",12.970615243342516]
["Fescue, Sheep","Festuca ovina",null," cool season grass",3.1,"Introduced","bunch","1","5.0-6.0",530320,"EXDR-MWD","No","Yes","Low","High",12.17447199265381]
["switchgrass","Panicum virgatum","shelter","warm season grass",8,"native","bunch","4-6","4.5-8",260000,null,"mod","No","Mod","Mod",5.9687786960514231]
["Little Bluestem","Schizachyrium scoparium","NY ecotype","warm season grass",24,"Native","bunch","3","5.5-7.5",240670,"EXDR-MWD","No","No","Low","High",5.5250229568411386]
["indiangrass","Sorgastrum nutans",null,"warm season grass",28,"native","bunch","4-6",">5.5",175000,null,"mod","No","low","mod",4.0174471992653809]
["praire dropseed","Sporobolus heterolepis",null,"grass",160,"Native","bunch",3,"2-3",1200000,null,"No","intermediate","high","high",27.548209366391184]
["purple top","Tridens flavus",null,"warm season grass",12,"Native","bunch","2.5","4.5-6.5",465000,"E-MW","no","No","none","High",10.674931129476583]
["eastern gamagrass","Tripsacum dactyloides",null,"warm season grass",22,"native","bunch"]

{"sheet":"Sheet1","index":6,"n_rows":64,"n_cols":20,"rows_kept":64,"cut":false,"hidden":true,"merged":[]}
["Scientific name","Common name","A/P","Native range","poll plant","bloom time","flower color","ht","Soil moisture","sunlight needs","wetland indicator","growth rate","seeds/lb","Cost (lb) ($)","drainage","other","SOURCES","other"]
["Achillea millefolium","common yarrow",null,"58,63,59,67,69,70,82,83","B","mid","white","2-3",null,"sun-part",null,null,3000000,null,null,null,"SS,JF","small native bees"]
["Acornus americanus","sweetflag",null,null,"B","early, mid","yellow","3-4","moist, wet","sun","OBL","rapid",null,null,null,null,"RB,EC,NC,ANP,EVT","deer resistant","swamps, bogs"]
["Acorus calamus","calamus",null,58,"B","early","green","1-4","wet","sun-part","OBL","mod",105600,null,null,null,"PMN,AG,SS,WSC,JF","naturalized"]
["Agalinis purpurea","purple false foxglove","A","NY,NH,MA,RI,CT,NJ,PA","B","early, mid, late","purple","1-2","moist, wet",null,"FACW-",null,12480000,null,null,null,"JF","high bee preference"]
["Agastache foeniculum","lavender hysoop","P","NY,PA,NH,CT","B","mid, late","blue-violet","3-5","dry, medium","sun-part","FACU",null,1440000,null,null,null,"SS,JF,MW,RB,NC","honey bee, bumble bee (N)","prolific seed producer"]
["Agastache nepetoides","yellow giant hyssop","P",70,"B","mid, late","yellow","3-8","dry, medium","sun-part","UPL",null,1480000,null,null,null,"PMN,AG, MW"]
["Amorpha canescens","leadplant","P","MI","B","early, mid","purple","2-3","dry, medium","sun-part","UPL",null,256000,null,null,null,"SS,JF","legume ","silver spotted skipper"]
["Amorpha fruticosa","desert false indigo","P","58,63,67,70,82","B","early-mid","purple","1-2",null,"sun ","FACW",null,"272000; 59200",null,null,null,"E,PMN,JF,RB","legume",null,"1-10% in a riparian mix"]
["Amsonia tabernaemontana","common bluestar","P",null,"B","early","blue","2-4","moist, wet","sun-part",null,null,null,null,null,null,"AGN,ET,MW,RB,EF","exotic looking flowers"]
["Angelica atropurpurea","purplestem angelica",null,58,"B","mid","white","1-2","dry, medium","sun","UPL",null,86400,null,null,null,"PMN,AG,ET,SS,JF","host for American painted lady caterpillar"]
["Aquilegia canadensis","red columbine","P","58,59,67,69,70,82,83","B","early","red","1-2","medium, wet","sun-part","FAC",null,400000,null,null,null,"ED,ANP,BH,ET,CNN,SS,WSC,JF,MW,EC,FC,NC","deer resistant, native bees, humming birds","Columbine Duskywing larvae food","could be difficult to grow from seed"]
["Asclepias purpurascens","purple milkweed",null,58,"B","mid","purple","2 -3 ft",null,"sun-part","FACU",null,72000,null,null,null,"PMN,MW,RB,EF,FC","Attracts butterflies, hummingbirds","good substitute for sommon milkweed"]
["Asclepias verticillata","whorled milkweed",null,70,"B","mid","white","1-2",null,"sun-part","UPL",null,176000,null,null,null,"PMN,AG,ED,SS,JF,MW,NC"]
["Baptisia alba","white wild indigo",null,"63,67","B","early","white/yellow","2-3",null,"sun-part",null,null,null,null,null,null,"SS","larval food for wild indigo duskywing","easy and can adapt well"]
["Bidens cernua","nodding beggartick","A","58,59,67,69,70,82,83","B","mid, late","yellow","2-3",null,"sun-part","OBL",null,130000,null,null,null,"JF","2-15% in a mix","reseeding in disturbes sutes"]
["Blephilia ciliata","downy pagoda-plant",null,58,"B","mid","pink",2,null,"sun-part",null,null,416000,null,null,null,"PMN,AG,ED"]
["Caltha palustris","yellow marsh marigold",null,"58,59,67,69,70,82","B","early","yellow","1-2",null,"sun-part","OBL","slow",12800000,null,null,null,"ANP,ET,EG,NE,JF,WSC,MW,RB,FC,NC",".5-5% in a mix"]
["Campanula americana","American bellflower",null,null,"B","early, mid, late","blue","2-6",null,"sun-part",null,null,14400000,null,null,null,"ED,SS,JF","very small seed"]
["Campanula rotundifolia","bluebell bellflower",null,"58,67,82,83","B","mid, late","blue-violet","1-2",null,"sun-part",null,null,116800,null,null,null,"ED,ET,MW,RB,FC"]
["Ceanothus americanus","New Jersey tea",null,58,"B","early","blueish-white","3-4",null,"sun-shade","UPL",null,96000,null,null,null,"E,PMN,PN,AG,ANP,SS,JF",null,null,"1-5% in a woodland mix"]
["Celastrus scandens","American bittersweet",null,"58,59,67,69,70,82,83","B","early","white","600\"",null,"sun-part","FACU",null,null,null,null,null,"PMN,ANP,RB"]
["Cephalanthus occidentalis","common buttonbush",null,"58,63,59,67,69,70,82,83","B","early, mid","white","6-15",null,"sun-shade","OBL","mod",null,null,null,null,"E,PMN,ED,ANP,E,NE,WSC,MW,RB","nectar source for butterflies",null,"1-10% in a wetland mix"]
["Chelone lyonii","pink turtlehead",null,58,"B","mid, late","pink","1 - 3 ft",null,"Sun/part shade ","OBL",null,null,null,null,null,"WFN,AGN,ED,ET,RB,EF,NC","Late fall color","tighlt clumping habit"]
["Cimicifuga racemosa","black bugbane (cohosh)","P",58,"B","early, mid","white","3-6",null,"sun-part",null,null,200000,null,null,null,"E,PMN,AGN,ED,ANP,ET,FC","blloms earlier than the others","1-5% in a mix"]
["Conoclinium coelestinum","blue mistflower",null,70,"B","mid, late","purple","1-3",null,"sun-part",null,null,null,null,null,null,"ED,ANP,NE,CNN"]
["Coreopsis tripteris","tall tickseed","P",70,"B","mid, late","yellow","3-6",null,"sun-part","FAC",null,83200,null,null,null,"E,PMN,AG,ED,WSC,MW,RB,ET.SS,JF","prolific seeder",".5-5% in a mix","wood margins and birder planting"]
["Cosmos bipinnatus","cosmos","A","WV",null,"mid, late","pink/white","2-4",null,null,null,null,"1500000, 5600000"]
["Echinacea pallida","pale purple coneflower",null,"59,67","B","mid","purple","2-4",null,"sun","UPL",null,768000,null,null,null,"ED,BH,ET,SS,JF","honey beesm native bees (n); goldfinches",null,"5-15% in a mix"]
["Eupatorium coelestinum","mistflower","P",null,"B","mid, late","purple","2-3",null,"sun-shade","FAC",null,null,null,null,null,"E,ET,JF,ED,NC","Great late season butterfly plant","will spread",".5-2% in a mix"]
["Eupatorium purpureum","sweetscented joepyeweed",null,58,"B","mid, late","pink-purple","2-6",null,"sun-shade","FAC","slow",null,null,null,null," E,PMN,PN,AG,OPN,WFN,AGN,ED,ANP,SS,JF,WSC,MW,RB,FC","butterflies and other insects","wood borders",".5-5% in a mix"]
["Gaillardia aristata","blanket flower",null,"WV","B","early, mid","yellow/red","1-2",null,"sun",null,null,76800,null,null,null,"PT,NC","honey bees, native bees (n/p)","east from seed","5-15% in a mix"]
["Gentiana clausa","bottle gentian",null,70,"B","late","blue-violet","1-2",null,"part sun ","OBL",null,76800,null,null,null,"ED,E,ET,CNN,NE,MW,FC","bumble bees",null,".5-2% in amix"]
["Geranium maculatum","spotted geranium",null,58,"B","early, mid","pink/purple","1-2",null,"sun-part",null,null,224000,null,null,null,"E,AG,WFN,AM,ED,ET,SS,JF,RB,FC,NC"]
["Helianthus divaricatus","woodland sunflower",null,58,"B","mid, late","yellow","6-10",null,"sun-part","UPL",null,33600,null,null,null,"E,PMN,ED,MW,RB,NC",null,"aggressive spreader"]
["Helianthus occidentalis","fewleaf sunflower",null,69,"B","mid, late","yellow","2-4",null,null,"FACU-",null,null,null,null,null,"E,PMN,AG,JF"]
["Hibiscus moscheutos","crimsoneyed rosemallow","P",70,"B","mid, late","pink/white","4-7",null,"sun-part","OBL","slow",160000,null,null,null,",E,ANP,BH,ET,CNN,NE,JF,WSC,EVT,MW,RB,FC,NC","humingbirds","excellent plant for wetland mitigation"]
["Iris virginica","Virginia iris",null,70,"B","early","violet","2-3",null,"sun-part","OBL","slow",176000,null,null,null,"E,AG,SS,JF,EVT,WSC,NC"]
["Lespedeza hirta","hairy lespedeza",null,58,"B",null,null,"1-3",null,"sun",null,null,null,null,null,null,"E,ET","birds and butterflies"]
["Lespedeza virginica","slender lespedeza",null,70,"B","mid","purple","2",null,null,"UPL ",null,null,null,null,null,"E,PMN,CNN","legume ws, bunch"]
["Liatris pycnostachya ","prairie blazing star",null,null,"B","mid, late","pink-purple","5-6",null,"sun-part","FACU","slow",14400000,null,null,null,"SS,JF,WSC","honey bees, bumble bees (n/p)","border or meadow plant, clump forming",".5-10% in a mix"]
["Liatris squarrulosa","Appalachian blazing star",null,69,"B",null,null,null,null,null,null,null,null,null,null,null,"E"]
["Lobelia puberula","downy lobelia",null,70,"B","mid, late","purple","1-3",null,null,"FACW-",null,null,null,null,null,"E,CNN","moist sandy soils, old fields, gravel pits",null,".5-2% in a mix"]
["Lobelia spicata","palespike lobelia",null,58,"B","early, mid","purple","2-3",null,"sun-part shade","FAC",null,null,null,null,null,"PMN,AG,ET,JF","humming birds"]
["Monarda didyma","scarlet beebalm","P",58,"B","mid","red","2-4'",null,"sun-part","FAC","mod",1440000,null,null,null,"AGN,ET,WSC,RB,FC,NC","Attracts hummingbirds and great nectar source for butterflies","easy to grow"]
["Penstemon canescens","eastern gray beardtongue",null,70,"B","early, mid","purple","1-2",null,"sun-part",null,null,176000,null,null,null,"E,EG","early season color","cliffs, woods, shale outcrops",".5-2% in a mix"]
["Penstemon clandestium","Appalachian beard tongue",null,null,"B",null,null,null,null,null,null,null,6048000,null,null,null,"E"]
["Penstemon laevigatus","eastern smooth beardtongue",null,70,"B","early, mid","purple/white","2-4",null,null,"FACU",null,496000,null,null,null,"E,JF","meadows woods roadsides",null,".5-5% in a mix"]
["Physostegia virginiana","obedient plant",null,"58,59,67,69,70,83","B","mid, late","pink/white","2 - 4ft",null,"Sun/part shade ","FACW-","rapid",240000,null,null,null," E,PMN,AG,AM.ED.BH,ET,JF,MW,EF,FC,NC","deer resistant, Attracts fall migrating hummingbirds","vigourous spreader","1-10% in a mix"]
["Pycnanthemum muticum","clustered mountainmint",null,58,"B","mid ","white","1-3",null,"sun-part shade","FACW",null,536000,null,null,null,"E,ED,BH,JF,MW,NC","deer resistant","excellent nectar plants","1-10% in a mix"]
["Pycnanthemum tenuifolium","narrowleaf mountainmint",null,58,"B","mid","white","1-3",null,"sun-part","FAC",null,480000,null,null,null,"PMN,BH,ET,CNN,MW","imporatn bumble bee plant, deer resistant"]
["Rudbeckia fulgida","orange coneflower",null,70,"B","mid, late","yellow ","2 - 4 ft       ",null,"sun","FAC",null,1440000,null,null,null,"E,PMN,PN,AGN,ED,ANP,ET,CNN,EG,JF,RB,EF,NC","Drought tolerant, birds eat seeds ","slowly spreading","5-15% in a mix"]
["Rudbeckia laciniata","cutleaf coneflower",null,"58,63,59,67,69,70","B","mid","yellow","3-6",null,"sun-part","FACW","slow",1344000,null,null,null," PMN,PN,AG,AGN,ANP,BH,ET,NE,JF,WSC,SS,MW,RB,NC","honey bees, native bees (n/p), goldfinches, deer resistanat",null,"1-10% in a mix"]
["Rudbeckia triloba","browneyed Susan",null,"59,67,69,70,","B","mid, late"," yellow","1-3",null,"sun-part","FACU",null,224000,null,null,null,"BH,SS,JF,MW,RB,EF,NC","native bees, bumble bees (n), goldfinches",null,"1-10% in a mix"]
["Sisyrinchium angustifolium","narrowleaf blue-eyed grass",null,"58,63,59,67,69,70,82","B","early, mid","blue","1",null,"sun-part","FACU",null,2000000,null,null,null,"E,AGN,ANP,ET,JF,MW,EC,FC,NC"]
["Solidago bicolor","white goldenrod",null,58,"B","late","white","2-3",null,"sun-part",null,null,816000,null,null,null,"E,PMN,NE","grows on infertile soils",null,"1-15% in a mix"]
["Solidago flexicaulis","zigzag goldenrod",null,58,"B","late","yellow","1-4",null,"sun-shade","FACU",null,176000,null,null,null,"PMN,AG,ED,JF,MW,RB,FC,NC","moderate spreader","aggressive","1-5% in a mix"]
["Solidago rugosa","wrinkleleaf goldenrod",null,58,"B","late","yellow","2-6",null,"sun-part","FAC","mod",null,null,null,null,"E,ANP,JF,WSC","\"fireworks\" will not spread",null,".5-15% in a mix"]
["Sporobolus heterolepis","prairie dropseed",null,67,"B","mid","green","2 - 3 ft",null,"Sun","UPL",null,"14000/oz",null,null,null,"E,PMN,PN,AG,OPN,ED,ANP,SS,JF,MW,RB,NC","Fine textured. valued by birds, very attractive ornamental"]
["Symphyotrichum cordifolium","common blue wood aster","P",70,"B","mid, late","blue-purple","2-3'",null,"sun-shade","UPL",null,2000000,null,null,null,"E,ET,MW,FC","abundant seed producer,in woodland clearings","1-10% in a mix"]
["Symphyotrichum lanceolatum","white panicle aster",null,58,"B","mid, late","white","2-5",null,"sun-part","FACW","mid","141000/oz",null,null,null,"ET,WSC","1-5% in a mix"]
["Symphyotrichum oblongifolium","aromatic aster",null,70,"B","late","violet","2-3",null,"sun","UPL",null,"51000/oz",null,null,null,"E,EG,MW","1-5% in a mix"]
["Symphyotrichum puniceum","purplestem aster",null,58,"B","mid, late","violet","3-6",null,"sun","OBL","slow","76000/oz",null,null,null,"AG,ANP,BH,WSC,FC","nectar for butterflies"]
["Zizia aptera","meadow zizia",null,69,"B","early, mid","yellow","1-3",null,"sun-part","FAC+",null,176000,null,null,null,"ED,JF,MW","endangered inCT, great for warerfowl","larval food of Black Swallowtail and Ozark butterflies","east from seed"]